Workbook

Sheet Table 1.1a
A1: Table 1.1: Population, by Sex, Glasgow and Suburbs, for Census Years
B3: 1801 | E3: 1811 | H3: 1821 | K3: 1831
B4: Male | C4: Female | D4: Total | E4: Male | F4: Female | G4: Total | H4: Male | I4: Female | J4: Total | K4: Male | L4: Female | M4: Total
A5: Glasgow City | O5: this table corrected
A6: St Pauls | B6: 2,364 | C6: 2,889 | D6: =B6+C6 -> 5,253 | E6: 2,699 | F6: 3,460 | G6: =E6+F6 -> 6,159 | H6: 3,282 | I6: 3,916 | J6: =H6+I6 -> 7,198 | K6: 4,230 | L6: 4,907 | M6: =K6+L6 -> 9,137 | O6: 2022-08-25
A7: St Enoch | B7: 2,803 | C7: 3,601 | D7: =B7+C7 -> 6,404 | E7: 3,394 | F7: 4,321 | G7: =E7+F7 -> 7,715 | H7: 3,156 | I7: 3,882 | J7: =H7+I7 -> 7,038 | K7: 3,572 | L7: 4,349 | M7: =K7+L7 -> 7,921
A8: St James | B8: — | C8: — | D8: — | E8: — | F8: — | G8: — | H8: 3,448 | I8: 3,815 | J8: 7,263 | K8: 3,730 | L8: 4,487 | M8: 8,217 | O8: indicates miscalc see below for image
A9: St Johns | B9: — | C9: — | D9: — | E9: — | F9: — | G9: — | H9: 3,752 | I9: 4,213 | J9: 7,965 | K9: 5,482 | L9: 6,264 | M9: 11,746
A10: St Andrews | B10: 1,878 | C10: 2,460 | D10: 4,338 | E10: 2,363 | F10: 2,887 | G10: =E10+F10 -> 5,250 | H10: 2,555 | I10: 3,176 | J10: 5,731 | K10: 2,705 | L10: 3,218 | M10: 5,923
A11: St Mungo | B11: 3,595 | C11: 4,494 | D11: 8,089 | E11: 5,001 | F11: 6,158 | G11: 11,159 | H11: 4,010 | I11: 4,813 | J11: 8,823 | K11: 4,834 | L11: 5,461 | M11: 10,295
A12: St Davia | B12: 3,159 | C12: 4,242 | D12: 7,401 | E12: 4,276 | F12: 5,662 | G12: 9,940 | H12: 2,667 | I12: 3,346 | J12: 6,013 | K12: 2,772 | L12: 3,496 | M12: 6,268
A13: Blackfriars | B13: 2,093 | C13: 2,808 | D13: 4,901 | E13: 2,657 | F13: 3,101 | G13: 5,758 | H13: 2,876 | I13: 3,390 | J13: 6,266 | K13: 3,452 | L13: 4,117 | M13: 7,569
A14: St Mary’s | B14: 2,920 | C14: 3,674 | D14: 6,594 | E14: 3,536 | F14: 4,627 | G14: 8,163 | H14: 3,095 | I14: 3,770 | J14: 6,865 | K14: 3,481 | L14: 4,048 | M14: 7,529
A15: St Georges | B15: 1,634 | C15: 2,165 | D15: 3,799 | E15: 1,860 | F15: 2,330 | G15: 4,190 | H15: 4,250 | I15: 5,353 | J15: 9,603 | K15: 6,885 | L15: 8,357 | M15: 15,242
A16: Total | B16: =SUM(B6:B15) -> 20,446 | C16: =SUM(C6:C15) -> 26,333 | D16: =SUM(D6:D15) -> 46,779 | E16: =SUM(E6:E15) -> 25,786 | F16: 32,546 | G16: 58,334 | H16: 33,091 | I16: 39,674 | J16: 72,765 | K16: 41,143 | L16: 48,704 | M16: 89,847
A17: Suburbs
A18: Barony | B18: 12,717 | C18: 13,993 | D18: =B18+C18 -> 26,710 | E18: 17,125 | F18: 20,091 | G18: =E18+F18 -> 37,216 | H18: 24,628 | I18: 27,292 | J18: =H18+I18 -> 51,920 | K18: 36,230 | L18: 41,155 | M18: =K18+L18 -> 77,385
A19: Gorbals | B19: 3,914 | C19: 3,645 | D19: 7,559 | E19: 6,282 | F19: 6,956 | G19: 13,238 | H19: 10,400 | I19: 11,959 | J19: 22,359 | K19: 16,351 | L19: 18,843 | M19: 35,194
A20: Govan | B20: 1,207 | C20: 1,831 | D20: 3,038 | E20: 1,556 | F20: 1,986 | G20: 3,542 | H20: 2,099 | I20: 2,226 | J20: 4,325 | K20: 2,722 | L20: 2,955 | M20: 5,677
A21: Calton
A22: Maryhill
A23: Shettleston
A24: Springburn
A25: Total | B25: =SUM(B18:B24) -> 17,838 | C25: 19,469 | D25: 37,307 | E25: 24,963 | F25: 29,033 | G25: 53,996 | H25: 37,127 | I25: 41,477 | J25: 78,604 | K25: 55,303 | L25: 62,953 | M25: 118,256
A27: Totals | B27: =B16+B25 -> 38,284 | C27: 45,802 | D27: 84,086 | E27: 50,749 | F27: 61,579 | G27: 112,330 | H27: 70,218 | I27: 81,151 | J27: 151,369 | K27: 96,446 | L27: 111,657 | M27: 208,103

Sheet Table 1.1b
A1: Table 1.1: Population, by Sex, Glasgow and Suburbs, for Census Years (Continued)
B3: 1841 | E3: 1851 | H3: 1861 | L3: this table corrected
B4: Male | C4: Female | D4: Total | E4: Male | F4: Female | G4: Total | H4: Male | I4: Female | J4: Total | L4: 2022-08-25
A5: Glasgow City
A6: St Pauls | B6: 4,375 | C6: 5,208 | D6: =B6+C6 -> 9,583 | E6: 7,045 | F6: 7,657 | G6: =E6+F6 -> 14,702 | H6: 7,021 | I6: 8,044 | J6: =H6+I6 -> 15,065
A7: St Enochs | B7: 4,078 | C7: 4,799 | D7: =B7+C7 -> 8,877 | E7: 3,847 | F7: 4,237 | G7: =E7+F7 -> 8,084 | H7: 2,686 | I7: 3,085 | J7: =H7+I7 -> 5,771
A8: St James | B8: 5,377 | C8: 5,839 | D8: 11,216 | E8: 6,033 | F8: 6,714 | G8: 12,747 | H8: 5,699 | I8: 6,616 | J8: 12,315
A9: St Johns | B9: 7,185 | C9: 8,240 | D9: 15,425 | E9: 9,766 | F9: 11,353 | G9: 21,119 | H9: 13,142 | I9: 14,601 | J9: 27,743
A10: St Andrews | B10: 3,369 | C10: 3,948 | D10: 7,317 | E10: 4,651 | F10: 5,022 | G10: 9,673 | H10: 4,534 | I10: 5,058 | J10: 9,592
A11: St Mungo | B11: 7,585 | C11: 7,859 | D11: 15,444 | E11: 10,083 | F11: 10,919 | G11: 21,002 | H11: 7,300 | I11: 8,005 | J11: 15,305
A12: St David | B12: 4,598 | C12: 5,166 | D12: 9,764 | E12: 4,810 | F12: 5,735 | G12: 10,545 | H12: 5,312 | I12: 6,013 | J12: 11,325
A13: Blackfriars | B13: 4,828 | C13: 5,749 | D13: 10,577 | E13: 5,491 | F13: 6,459 | G13: 11,950 | H13: 4,828 | I13: 5,747 | J13: 10,575
A14: St Mary's | B14: 4,881 | C14: 5,109 | D14: 9,990 | E14: 5,662 | F14: 6,115 | G14: 11,777 | H14: 4,899 | I14: 5,381 | J14: 10,280
A15: St Georges | B15: 9,528 | C15: 10,842 | D15: 20,370 | E15: 12,448 | F15: 13,524 | G15: 25,972 | H15: 14,458 | I15: 15,182 | J15: 29,640
A16: Total | B16: =SUM(B6:B15) -> 55,804 | C16: 62,759 | D16: 118,563 | E16: 69,836 | F16: 77,735 | G16: 147,571 | H16: 69,879 | I16: 77,732 | J16: 147,611
A17: Suburbs
A18: Barony | B18: 50,147 | C18: 55,928 | D18: =B18+C18 -> 106,075 | E18: 35,725 | F18: 41,774 | G18: =E18+F18 -> 77,499 | H18: 46,778 | I18: 54,650 | J18: =H18+I18 -> 101,428
A19: Gorbals | B19: 23,831 | C19: 25,264 | D19: =B19+C19 -> 49,095 | E19: 29,376 | F19: 31,373 | G19: =E19+F19 -> 60,749 | H19: 5,047 | I19: 5,447 | J19: =H19+I19 -> 10,494
A20: Govan | B20: 3,703 | C20: 4,107 | D20: 7,810 | E20: 7,286 | F20: 7,710 | G20: 14,996 | H20: 47,971 | I20: 52,745 | J20: 100,716
A21: Calton | E21: 20,994 | F21: 24,526 | G21: 45,520 | H21: 24,295 | I21: 28,762 | J21: 53,057
A22: Maryhill | E22: 3,265 | F22: 3,435 | G22: 6,700 | H22: 5,393 | I22: 5,867 | J22: 11,260
A23: Shettleston | E23: 3,279 | F23: 3,285 | G23: 6,564 | H23: 3,445 | I23: 3,469 | J23: 6,914
A24: Springburn | H24: 7,391 | I24: 7,571 | J24: 14,962
A25: Total | B25: =SUM(B18:B24) -> 77,681 | C25: 85,299 | D25: 162,980 | E25: 99,925 | F25: 112,103 | G25: 212,028 | H25: 140,320 | I25: 158,511 | J25: 298,831
A27: Totals | B27: =B16+B25 -> 133,485 | C27: 148,058 | D27: 281,543 | E27: 169,761 | F27: 189,838 | G27: 359,599 | H27: 210,199 | I27: 236,243 | J27: 446,442

Sheet Table 1.1c
A1: Table 1.1: Population, by Sex, Glasgow and Suburbs, for Census Years (Continued)
B3: 1871 | E3: 1881 | H3: 1891
B4: Male | C4: Female | D4: Total | E4: Male | F4: Female | G4: Total | H4: Male | I4: Female | J4: Total | L4: CHECK THESE NUMBERS
A5: Glasgow City
A6: St Pauls | B6: 6,851 | C6: 7,478 | D6: =B6+C6 -> 14,329 | E6: - | F6: - | G6: - | H6: - | I6: - | J6: -
A7: St Enochs | B7: 2,019 | C7: 2,267 | D7: =B7+C7 -> 4,286 | E7: - | F7: - | G7: - | H7: - | I7: - | J7: -
A8: St James | B8: 5,343 | C8: 5,866 | D8: 11,209 | E8: - | F8: - | G8: - | H8: - | I8: - | J8: -
A9: St Johns | B9: 17,524 | C9: 18,370 | D9: 35,894 | E9: - | F9: - | G9: - | H9: - | I9: - | J9: -
A10: St Andrews | B10: 4,652 | C10: 4,691 | D10: 9,343 | E10: - | F10: - | G10: - | H10: - | I10: - | J10: -
A11: St Mungo | B11: 8,760 | C11: 9,024 | D11: 17,784 | E11: - | F11: - | G11: - | H11: - | I11: - | J11: -
A12: St David | B12: 5,743 | C12: 5,957 | D12: 11,700 | E12: - | F12: - | G12: - | H12: - | I12: - | J12: -
A13: Blackfriars | B13: 4,803 | C13: 5,172 | D13: 9,975 | E13: - | F13: - | G13: - | H13: - | I13: - | J13: -
A14: St Mary's | B14: 4,191 | C14: 4,280 | D14: 8,471 | E14: - | F14: - | G14: - | H14: - | I14: - | J14: -
A15: St Georges | B15: 18,745 | C15: 18,486 | D15: 37,231 | E15: - | F15: - | G15: - | H15: - | I15: - | J15: -
A16: Total | B16: 78,658 | C16: 81,591 | D16: =SUM(D6:D15) -> 160,222 | E16: 82,315 | F16: 83,813 | G16: 166,128 | H16: 89,224 | I16: 87,600 | J16: 176,824
A17: Suburbs
A18: Barony | B18: 62,546 | C18: 68,223 | D18: =B18+C18 -> 130,769 | E18: 127,082 | F18: 137,427 | G18: =E18+F18 -> 264,509 | H18: 150,614 | I18: 159,198 | J18: =H18+I18 -> 309,812
A19: Gorbals | B19: 5,009 | C19: 5,153 | D19: =B19+C19 -> 10,162 | E19: 2,906 | F19: 2,661 | G19: =E19+F19 -> 5,567 | H19: 3,159 | I19: 2,847 | J19: =H19+I19 -> 6,006
A20: Govan | B20: 74,840 | C20: 76,562 | D20: 151,402 | E20: 113,647 | F20: 119,249 | G20: 232,896 | H20: 135,627 | I20: 144,648 | J20: 280,275
A21: Calton | B21: 31089 | C21: 36132 | D21: 67221 | E21: - | F21: - | G21: - | H21: - | I21: - | J21: -
A22: Maryhill | B22: 8370 | C22: 8737 | D22: 17107 | E22: - | F22: - | G22: - | H22: - | I22: - | J22: -
A23: Shettleston | B23: 3670 | C23: 3847 | D23: 7517 | E23: - | F23: - | G23: - | H23: - | I23: - | J23: -
A24: Springburn | B24: 11180 | C24: 10502 | D24: 21682 | E24: - | F24: - | G24: - | H24: - | I24: - | J24: -
A25: Total | B25: =SUM(B18:B24) -> 196,704 | C25: =SUM(C18:C24) -> 209,156 | D25: =SUM(D18:D24) -> 405,860 | E25: =SUM(E18:E24) -> 243,635 | F25: 259,337 | G25: 502,972 | H25: 289,400 | I25: 306,693 | J25: 596,093
A27: Totals | B27: =B16+B25 -> 275,362 | C27: 290,747 | D27: 566,082 | E27: 325,950 | F27: 343,150 | G27: 669,100 | H27: 378,624 | I27: 394,293 | J27: 772,917
B28: 275362 | C28: 290747 | D28: 566109 | E28: 325950 | F28: 343150 | G28: 669100 | H28: 378624 | I28: 394293 | J28: 772917
A30: Table 1.1: Population, by Sex, Glasgow and Suburbs, for Census Years (Continued)
C32: 1871 | F32: 1881 | I32: 1891
C33: Male | D33: Female | E33: Total | F33: Male | G33: Female | H33: Total | I33: Male | J33: Female | K33: Total
A34: Glasgow City:
B35: St Pauls | C35: 6,851 | D35: 7,478 | E35: 14,329 | F35: - | G35: - | H35: - | I35: - | J35: - | K35: -
B36: St Enoch | C36: 2,019 | D36: 2,267 | E36: 4,286 | F36: - | G36: - | H36: - | I36: - | J36: - | K36: -
B37: St James | C37: 5,343 | D37: 5,866 | E37: 11,209 | F37: - | G37: - | H37: - | I37: - | J37: - | K37: -
B38: St Johns | C38: 17,524 | D38: 18,370 | E38: 35,894 | F38: - | G38: - | H38: - | I38: - | J38: - | K38: -
B39: St Andrews | C39: 4,652 | D39: 4,691 | E39: 9,343 | F39: - | G39: - | H39: - | I39: - | J39: - | K39: -
B40: St Mungo | C40: 8,760 | D40: 9,024 | E40: 17,784 | F40: - | G40: - | H40: - | I40: - | J40: - | K40: -
B41: St David | C41: 5,743 | D41: 5,957 | E41: 11,700 | F41: - | G41: - | H41: - | I41: - | J41: - | K41: -
B42: Blackfriars | C42: 4,803 | D42: 5,172 | E42: 10,002 | F42: - | G42: - | H42: - | I42: - | J42: - | K42: -
B43: St Mary’s | C43: 4,191 | D43: 4,280 | E43: 8,471 | F43: - | G43: - | H43: - | I43: - | J43: - | K43: -
B44: St Georges | C44: 18,745 | D44: 18,486 | E44: 37,231 | F44: - | G44: - | H44: - | I44: - | J44: - | K44: -
B45: Total | C45: 78,658 | D45: 81,591 | E45: 160,249 | F45: 82,315 | G45: 83,813 | H45: 166,128 | I45: 89,224 | J45: 87,600 | K45: 176,824
A47: Suburbs:
B48: Barony | C48: 62,546 | D48: 68,223 | E48: 130,769 | F48: 127,082 | G48: 137,427 | H48: 264,509 | I48: 150,614 | J48: 159,198 | K48: 309,812
B49: Gorbals | C49: 5,009 | D49: 5,153 | E49: 10,162 | F49: 2,906 | G49: 2,661 | H49: 5,567 | I49: 3,159 | J49: 2,847 | K49: 6,006
B50: Govan | C50: 74,840 | D50: 76,562 | E50: 151,402 | F50: 113,647 | G50: 119,249 | H50: 232,896 | I50: 135,627 | J50: 144,648 | K50: 280,275
B51: Calton | C51: 31,089 | D51: 36,132 | E51: 67,221 | F51: - | G51: - | H51: - | I51: - | J51: - | K51: -
B52: Maryhill | C52: 8,370 | D52: 8,737 | E52: 17,107 | F52: - | G52: - | H52: - | I52: - | J52: - | K52: -
B53: Shettleston | C53: 3,670 | D53: 3,847 | E53: 7,517 | F53: - | G53: - | H53: - | I53: - | J53: - | K53: -
B54: Springburn | C54: 11,180 | D54: 10,502 | E54: 21,682 | F54: - | G54: - | H54: - | I54: - | J54: - | K54: -
A55: Total | C55: =SUM(C48:C54) -> 196,704 | D55: 209,156 | E55: 405,860 | F55: 243,635 | G55: 259,337 | H55: 502,972 | I55: 289,400 | J55: 306,693 | K55: 596,093
A57: Totals | C57: =C55+C45 -> 275,362 | D57: =D55+D45 -> 290,747 | E57: 566,109 | F57: =F55+F45 -> 325,950 | G57: 343,150 | H57: 669,100 | I57: 378,624 | J57: 394,293 | K57: 772,917

Sheet 1.2a
A1: Table 1.2 Male-Female Ratio, Percentage Increase by Sex, for Census Years
B3: 1811 | F3: 1821 | J3: 1831
B4: Male | C4: Male | D4: Female | E4: Total | F4: Male | G4: Male | H4: Female | I4: Total | J4: Male | K4: Male | L4: Female | M4: Total
B5: Female | C5: % | D5: % | E5: % | F5: Female | G5: % | H5: % | I5: % | J5: Female | K5: % | L5: % | M5: %
B6: Ratio | C6: increase | D6: increase | E6: increase | F6: Ratio | G6: increase | H6: increase | I6: increase | J6: Ratio | K6: increase | L6: increase | M6: increase
A7: Glasgow City:
A8: St Pauls | B8: .780 | C8: 14.17 | D8: 19.76 | E8: 17.25 | F8: .838 | G8: 21.60 | H8: 13.18 | I8: 16.87 | J8: .862 | K8: 28.88 | L8: 27.32 | M8: 26.94
A9: St Enoch | B9: .785 | C9: 21.08 | D9: 19.99 | E9: 20.47 | F9: .813 | G9: -7.01 | H9: -10.16 | I9: -8.78 | J9: .821 | K9: 13.18 | L9: '12.03 | M9: 12.55
A10: St James | B10: — | C10: — | D10: — | E10: — | F10: .904 | G10: — | H10: — | I10: — | J10: .831 | K10: 8.18 | L10: 17.61 | M10: 13.14
A11: St Johns | B11: — | C11: — | D11: — | E11: — | F11: .891 | G11: — | H11: — | I11: — | J11: .875 | K11: 46.11 | L11: 48.68 | M11: 47.47
A12: St Andrews | B12: .818 | C12: 25.83 | D12: 17.36 | E12: 21.02 | F12: .804 | G12: 8.13 | H12: 10.01 | I12: 9.16 | J12: .841 | K12: 5.87 | L12: 1.32 | M12: 3.35
A13: St Mungo | B13: .812 | C13: 39.11 | D13: 37.03 | E13: 37.95 | F13: .833 | G13: -19.82 | H13: -21.84 | I13: -20.93 | J13: .885 | K13: 20.30 | L13: 13.46 | M13: 16.68
A14: St David | B14: .755 | C14: 35.36 | D14: 33.47 | E14: 34.31 | F14: .797 | G14: -37.63 | H14: -40.90 | I14: -39.51 | J14: .793 | K14: 3.94 | L14: 4.48 | M14: 4.24
A15: Blackfriars | B15: .857 | C15: 26.95 | D15: 10.43 | E15: 17.49 | F15: .848 | G15: 8.24 | H15: 9.32 | I15: 8.82 | J15: .838 | K15: 20.03 | L15: 21.45 | M15: 20.79
A16: St Mary’s | B16: .764 | C16: 21.10 | D16: 25.94 ’ | E16: 23.79 | F16: .821 | G16: -12.47 | H16: -18.52 | I16: -15.90 | J16: .860 | K16: 12.48 | L16: 7.37 | M16: 9.67
A17: St Georges | B17: .798 | C17: 13.83 | D17: 7.62 | E17: 10.29 | F17: .794 | G17: 128.49 | H17: 129.74 | I17: 129.19 | J17: .824 | K17: 62.00 | L17: 56.12 | M17: 58.72
A18: Total | B18: .792 | C18: 26.12 | D18: 23.59 | E18: 24.70 | F18: .834 | G18: 28.33 | H18: 21.90 | I18: 24.74 | J18: .845 | K18: 42.33 | L18: 22.75 | M18: 23.48
A19: Suburbs:
A20: Barony | B20: .852 | C20: 34.66 | D20: 43.58 | E20: 39.33 | F20: .902 | G20: 43.81 | H20: 35.84 | I20: 39.51 | J20: .880 | K20: 47.11 | L20: 50.80 | M20: 49.05
A21: Gorbals | B21: .903 | C21: 60.50 | D21: 90.84 | E21: 75.13 | F21: .870 | G21: 65.55 | H21: 71.92 | I21: 68.90 | J21: .868 | K21: 57.22 | L21: 57.56 | M21: 57.40
A22: Govan | B22: .783 | C22: 28.91 | D22: 8.47 | E22: 16.59 | F22: .943 | G22: 34.90 | H22: 12.08 | I22: 22.11 | J22: .921 | K22: 29.68 | L22: 32.75 | M22: 31.26
A23: Calton | B23: — | C23: — | D23: — | E23: — | F23: — | G23: — | H23: — | I23: — | J23: — | K23: — | L23: — | M23: —
A24: Maryhill | B24: — | C24: — | D24: — | E24: — | F24: — | G24: — | H24: — | I24: — | J24: — | K24: — | L24: — | M24: —
A25: Shettleston | B25: — | C25: — | D25: — | E25: — | F25: — | G25: — | H25: — | I25: — | J25: — | K25: — | L25: — | M25: —
A26: Springburn | B26: — | C26: — | D26: — | E26: — | F26: — | G26: — | H26: — | I26: — | J26: — | K26: — | L26: — | M26: —
A27: Total | B27: .859 | C27: 39.77 | D27: 49.12 | E27: 44.73 | F27: .895 | G27: 48.91 | H27: 42.86 | I27: 45.57 | J27: .878 | K27: 48.96 | L27: 51.78 | M27: 50.45
A28: Totals | B28: .824 | C28: 32.48 | D28: 34.45 | E28: 33.59 | F28: .865 | G28: 38.45 | H28: 31.78 | I28: 34.75 | J28: .864 | K28: 37.35 | L28: 37.59 | M28: 37.48

Sheet 1.2b
A1: Table 1.2 Male-Female Ratio, Percentage Increase by Sex, for Census Years (continued)
B3: 1841 | F3: 1851 | J3: 1861
B4: Male | C4: Male | D4: Female | E4: Total | F4: Male | G4: Male | H4: Female | I4: Total | J4: Male | K4: Male | L4: Female | M4: Total
B5: Female | C5: % | D5: % | E5: % | F5: Female | G5: % | H5: % | I5: % | J5: Female | K5: % | L5: % | M5: %
B6: Ratio | C6: increase | D6: increase | E6: increase | F6: Ratio | G6: increase | H6: increase | I6: increase | J6: Ratio | K6: increase | L6: increase | M6: increase
A7: Glasgow City:
A8: St Pauls | B8: .840 | C8: 3.360 | D8: 6.130 | E8: 4.880 | F8: 0.920 | G8: 61.030 | H8: 47.020 | I8: 53.420 | J8: .873 | K8: -.340 | L8: 5.050 | M8: 2.470
A9: St Enoch | B9: .850 | C9: 14.070 | D9: 10.350 | E9: 12.070 | F9: 0.908 | G9: -5.660 | H9: -11.710 | I9: -8.930 | J9: .871 | K9: -30.180 | L9: -27.190 | M9: -28.610
A10: St James | B10: .921 | C10: 44.160 | D10: 30.130 | E10: 36.500 | F10: 0.899 | G10: 12.200 | H10: 14.990 | I10: 13.650 | J10: .861 | K10: -5.540 | L10: -1.460 | M10: -3.390
A11: St Johns | B11: .872 | C11: 31.070 | D11: 31.550 | E11: 31.220 | F11: 0.860 | G11: 35.920 | H11: 37.780 | I11: 36.910 | J11: .900 | K11: 34.570 | L11: 28.610 | M11: 31.370
A12: St Andrews | B12: .853 | C12: 24.550 | D12: 22.680 | E12: 23.540 | F12: 0.926 | G12: 38.050 | H12: 27.200 | I12: 32.300 | J12: .896 | K12: -2.520 | L12: .720 | M12: -.840
A13: St Mungo | B13: .965 | C13: 56.910 | D13: 45.110 | E13: 50.010 | F13: 0.923 | G13: 32.930 | H13: 38.940 | I13: 35.980 | J13: .912 | K13: -27.600 | L13: -26.690 | M13: -27.120
A14: St David | B14: .890 | C14: 65.870 | D14: 47.770 | E14: 55.780 | F14: 0.839 | G14: 4.610 | H14: 11.010 | I14: 8.000 | J14: .883 | K14: 10.440 | L14: 4.850 | M14: 7.400
A15: Blackfriars | B15: .840 | C15: 39.860 | D15: 39.640 | E15: 39.700 | F15: 0.850 | G15: 13.730 | H15: 12.350 | I15: 13.010 | J15: .840 | K15: -12.070 | L15: -11.020 | M15: 11.510
A16: St Mary’s | B16: .955 | C16: 40.220 | D16: 26.210 | E16: 32.690 | F16: 0.926 | G16: 16.000 | H16: 19.690 | I16: 17.890 | J16: .910 | K16: -13.480 | L16: -12.000 | M16: -12.710
A17: St Georges | B17: .879 | C17: 38.390 | D17: 30.930 | E17: 33.640 | F17: 0.920 | G17: 30.650 | H17: 24.740 | I17: 27.500 | J17: .952 | K17: 16.150 | L17: 12.260 | M17: 14.120
A18: Total | B18: .889 | C18: 35.630 | D18: 28.860 | E18: 31.960 | F18: 0.898 | G18: 25.150 | H18: 23.860 | I18: 24.470 | J18: .899 | K18: .060 | L18: .000 | M18: .020
A19: Suburbs:
A20: Barony | B20: .897 | C20: 38.41 | D20: 35.90 | E20: 37.07 | F20: .855 | G20: -28.76 | H20: -25.31 | I20: -26.94 | J20: .856 | K20: 30.940 | L20: 30.820 | M20: 30.880
A21: Gorbals | B21: .943 | C21: 45.75 | D21: 34.08 | E21: 39.50 | F21: .936 | G21: 23.27 | H21: 24.18 | I21: 23.74 | J21: .927 | K21: -82.820 | L21: -82.640 | M21: -82.730
A22: Govan | B22: .902 | C22: 36.04 | D22: 38.90 | E22: 30.57 | F22: .945 | G22: 96.76 | H22: 87.73 | I22: 92.01 | J22: .909 | K22: 558.400 | L22: 584.110 | M22: 571.620
A23: Calton | B23: — | C23: — | D23: — | E23: — | F23: .856 | G23: — | H23: — | I23: — | J23: .845 | K23: 15.720 | L23: 17.270 | M23: 16.560
A24: Maryhill | B24: — | C24: — | D24: — | E24: — | F24: .951 | G24: — | H24: — | I24: — | J24: .919 | K24: 65.180 | L24: 70.800 | M24: 68.060
A25: Shettleston | B25: — | C25: — | D25: — | E25: — | F25: .998 | G25: — | H25: — | I25: — | J25: .993 | K25: 5.060 | L25: 5.600 | M25: 5.330
A26: Springburn | B26: — | C26: — | D26: — | E26: — | F26: — | G26: — | H26: — | I26: — | J26: .976 | K26: — | L26: — | M26: —
A27: Total | B27: .911 | C27: 40.46 | D27: 35.50 | E27: 37.82 | F27: .891 | G27: 26.64 | H27: 31.42 | I27: 30.09 | J27: .885 | K27: 40.430 | L27: 41.400 | M27: 40.940
A28: Totals | B28: .902 | C28: 38.40 | D28: 32.60 | E28: 35.29 | F28: .894 | G28: 27.18 | H28: 28.22 | I28: 27.72 | J28: .890 | K28: 23.820 | L28: 24.440 | M28: 24.150

Sheet 1.2c
A1: Table 1.2 Male-Female Ratio, Percentage Increase by Sex, for Census Years (continued)
B3: 1871 | F3: 1881 | J3: 1891
B4: Male | C4: Male | D4: Female | E4: Total | F4: Male | G4: Male | H4: Female | I4: Total | J4: Male | K4: Male | L4: Female | M4: Total
B5: Female | C5: % | D5: % | E5: % | F5: Female | G5: % | H5: % | I5: % | J5: Female | K5: % | L5: % | M5: %
B6: Ratio | C6: increase | D6: increase | E6: increase | F6: Ratio | G6: increase | H6: increase | I6: increase | J6: Ratio | K6: increase | L6: increase | M6: increase
A7: Glasgow City:
A8: St Pauls | B8: .916 | C8: -2.42 | D8: 7.04 | E8: 4.89 | F8: — | G8: — | H8: — | I8: — | J8: — | K8: — | L8: — | M8: —
A9: St Enoch | B9: .891 | C9: -24.83 | D9: -25.52 | E9: -25.73 | F9: — | G9: — | H9: — | I9: — | J9: — | K9: — | L9: — | M9: —
A10: St James | B10: .911 | C10: -6.07 | D10: -11.34 | E10: -8.98 | F10: — | G10: — | H10: — | I10: — | J10: — | K10: — | L10: — | M10: —
A11: St Johns | B11: .954 | C11: 33.34 | D11: 25.81 | E11: 29.38 | F11: — | G11: — | H11: — | I11: — | J11: — | K11: — | L11: — | M11: —
A12: St Andrews | B12: .992 | C12: 2.60 | D12: -7.26 | E12: -2.60 | F12: — | G12: — | H12: — | I12: — | J12: — | K12: — | L12: — | M12: —
A13: St Mungo | B13: .971 | C13: 20.00 | D13: 12.73 | E13: 16.20 | F13: — | G13: — | H13: — | I13: — | J13: — | K13: — | L13: — | M13: —
A14: St David | B14: .964 | C14: 8.11 | D14: -.93 | E14: 3.31 | F14: — | G14: — | H14: — | I14: — | J14: — | K14: — | L14: — | M14: —
A15: Blackfriars | B15: .934 | C15: .00 | D15: -10.01 | E15: -5.42 | F15: — | G15: — | H15: — | I15: — | J15: — | K15: — | L15: — | M15: —
A16: St Mary’s | B16: .979 | C16: -14.45 | D16: -20.46 | E16: -17.60 | F16: — | G16: — | H16: — | I16: — | J16: — | K16: — | L16: — | M16: —
A17: St Georges | B17: 1.014 | C17: 29.65 | D17: 21.76 | E17: 25.61 | F17: — | G17: — | H17: — | I17: — | J17: — | K17: — | L17: — | M17: —
A18: Total | B18: 9.64 | C18: 12.56 | D18: 4.96 | E18: 8.56 | F18: .982 | G18: 4.65 | H18: 2.72 | I18: 3.67 | J18: 1.019 | K18: 8.39 | L18: 4.52 | M18: 6.44
A19: Suburbs:
A20: Barony | B20: .917 | C20: 33.71 | D20: 24.84 | E20: 28.93 | F20: .925 | G20: 103.18 | H20: 101.44 | I20: 102.27 | J20: .946 | K20: 18.520 | L20: 15.840 | M20: 17.130
A21: Gorbals | B21: .972 | C21: -.75 | D21: -5.40 | E21: -3.16 | F21: 1.092 | G21: -41.98 | H21: -48.36 | I21: -45.22 | J21: 1.110 | K21: 8.710 | L21: 6.990 | M21: 7.890
A22: Govan | B22: .978 | C22: 56.01 | D22: 45.16 | E22: 50.33 | F22: .953 | G22: 51.85 | H22: 55.75 | I22: 53.83 | J22: .938 | K22: 19.340 | L22: 21.300 | M22: 20.340
A23: Calton | B23: 0.86 | C23: 27.96 | D23: 25.62 | E23: 26.70 | F23: — | G23: — | H23: — | I23: — | J23: — | K23: — | L23: — | M23: —
A24: Maryhill | B24: 0.958 | C24: 55.20 | D24: 48.92 | E24: 51.93 | F24: — | G24: — | H24: — | I24: — | J24: — | K24: — | L24: — | M24: —
A25: Shettleston | B25: 0.954 | C25: 6.53 | D25: 10.90 | E25: 8.72 | F25: — | G25: — | H25: — | I25: — | J25: — | K25: — | L25: — | M25: —
A26: Springburn | B26: 1.065 | C26: 51.27 | D26: 38,71 | E26: 44.91 | F26: — | G26: — | H26: — | I26: — | J26: — | K26: — | L26: — | M26: —
A27: Total | B27: .940 | C27: 40.18 | D27: 31.95 | E27: 35.82 | F27: .939 | G27: 23.86 | H27: 23.99 | I27: 23.93 | J27: .944 | K27: 18.780 | L27: 18.260 | M27: 18.510
A28: Totals | B28: .947 | C28: 31.00 | D28: 23.07 | E28: 26.80 | F28: .950 | G28: 18.37 | H28: 18.02 | I28: 18.19 | J28: .960 | K28: 16.160 | L28: 14.900 | M28: 15.520

Sheet 1.3
A1: Table 1.3: Age Distribution of the City and Suburbs
B3: 1841 | C3: 1851 | D3: 1861 | E3: 1871 | F3: 1881 | G3: 1891 | H3: 1901
A4: Percentage of Males,
A5: by Age Group
A6: under 15 | B6: 35.70 | C6: 34.90 | D6: 36.43 | E6: 35.97 | F6: 35.58 | G6: 35.22 | H6: 32.81
A7: under 20 | B7: 46.16 | C7: 46.13 | D7: 46.98 | E7: 46.30 | F7: 46.00 | G7: 45.47 | H7: 42.87
A8: 20-40 | B8: 36.12 | C8: 35.13 | D8: 33.22 | E8: 34.22 | F8: 33.97 | G8: 33.62 | H8: 35.32
A9: 40-60 | B9: 13.80 | C9: 14.97 | D9: 15.85 | E9: 15.37 | F9: 15.74 | G9: 16.41 | H9: 17.22
A10: over 60 | B10: 3.77 | C10: 3.76 | D10: 3.95 | E10: 4.11 | F10: 4.28 | G10: 4.94 | H10: 4.59
A11: Percentage of Females,
A12: by Age Group
A13: under 15 | B13: 32.58 | C13: 30.86 | D13: 31.59 | E13: 33.56 | F13: 33.63 | G13: 33.31 | H13: 31.58
A14: under 20 | B14: 44.33 | C14: 42.25 | D14: 41.97 | E14: 43.56 | F14: 43.76 | G14: 43.56 | H14: 41.63
A15: 20-40 | B15: 37.13 | C15: 37.09 | D15: 35.84 | E15: 33.62 | F15: 32.47 | G15: 32.96 | H15: 35.01
A16: 40-60 | B16: 13.77 | C16: 15.65 | D16: 16.70 | E16: 16.90 | F16: 17.53 | G16: 17.19 | H16: 17.14
A17: over 60 | B17: 4.63 | C17: 5.01 | D17: 5.49 | E17: 5.92 | F17: 6.24 | G17: 6.30 | H17: 6.21
A18: Ratio of Females
A19: to Males
A20: under 20 | B20: 105.88 | C20: 106.90 | D20: 101.08 | E20: 100.49 | F20: 100.74 | G20: 101.20 | H20: 100.91
A21: over 20 | B21: 114.04 | C21: 119.93 | D21: 123.84 | E21: 112.27 | F21: 110.32 | G21: 109.33 | H21: 106.17
A23: Source: Computed from Census

Sheet 1.4
A1: Table 1.4: Conjugal Condition of the Population over the Age of 15
B2: 1861 | C2: 1871 | D2: 1881 | E2: 1891 | F2: 1901
A3: Men
A4: Men 15+ | B4: 117,960 | C4: 147,904 | D4: 160,000 | E4: 207,358 | F4: 250,985
A5: Number of
A6: Bachelors | B6: 50,303 | C6: 66,171 | D6: 72,029 | E6: 95,137 | F6: 118,944
A7: Husbands | B7: 61,877 | C7: 74,467 | D7: 79,785 | E7: 102,061 | F7: 119,528
A8: Widowers | B8: 5,780 | C8: 7,266 | D8: 8,186 | E8: 10,160 | F8: 12,513
A10: Percentage of Men
A11: above the Age of 15
A12: Bachelors | B12: 42.64 | C12: 44.74 | D12: 45.02 | E12: 45.88 | F12: 47.39
A13: Husbands | B13: 52.46 | C13: 50.35 | D13: 49.87 | E13: 49.22 | F13: 47.62
A14: Widowers | B14: 4.90 | C14: 4.91 | D14: 5.12 | E14: 4.90 | F14: 4.99
A16: Women
A17: Women 15+ | B17: 143,616 | C17: 163,935 | D17: 174,584 | E17: 225,483 | F17: 265,588
A18: Number of
A19: Spinsters | B19: 59,097 | C19: 63,762 | D19: 67,487 | E19: 92,433 | F19: 112,684
A20: Wives | B20: 64,466 | C20: 76,489 | D20: 82,089 | E20: 104,962 | F20: 122,188
A21: Widows | B21: 20,053 | C21: 23,684 | D21: 25,008 | E21: 28,088 | F21: 30,716
A23: Percentage of Women
A24: above the Age of 15
A25: Spinsters | B25: 41.15 | C25: 38.90 | D25: 38.66 | E25: 40.99 | F25: 42.43
A26: Wives | B26: 44.89 | C26: 46.66 | D26: 47.02 | E26: 46.55 | F26: 46.01
A27: Widows | B27: 13.96 | C27: 14.45 | D27: 14.32 | E27: 12.46 | F27: 11.57
A28: Male-Female Ratio | B28: .821 | C28: .902 | D28: .916 | E28: .920 | F28: .945
A30: Source: Computed from Census data.

Sheet 1.5
B1: Table 1.5: Percentage of the Population of Glasgow by Place of Birth
C3: 1851 | D3: 1861 | E3: 1871 | F3: 1881 | G3: 1891 | H3: 1901
B4: Glasgow | C4: 44.07 | D4: 50.96 | E4: 57.84 | F4: 68.7 | G4: 62.31 | H4: 61.51
B5: out of Glasgow | C5: 55.93 | D5: 49.04 | E5: 42.15 | F5: 31.3 | G5: 37.69 | H5: 38.49
B6: Scotland | C6: 78.75 | D6: 81 | E6: 81.91 | F6: 82.83 | G6: 85.24 | H6: 85.72
B7: England | C7: 2.45 | D7: 2.6 | E7: 2.99 | F7: 3.07 | G7: 3.58 | H7: 3.62
B8: Ireland | C8: 18.17 | D8: 15.7 | E8: 14.32 | F8: 13.12 | G8: 10.04 | H8: 8.88
B9: Wales | C9: 0.03 | D9: 0.04 | E9: 0.05 | F9: 0.07 | G9: 0.08 | H9: 0.07
B10: Channel Islands | C10: 0.03 | D10: 0.03 | E10: 0.03 | F10: 0.04 | G10: 0.03 | H10: 0.03
B11: British Colonies | C11: 0.28 | D11: 0.29 | E11: 0.3 | F11: 0.34 | G11: 0.4 | H11: 1.31
B12: At Sea | C12: 0.02 | D12: 0.02 | E12: 0.19 | F12: 0.23 | G12: 0.25 | H12: 0.01
B13: Foreigners | C13: 0.19 | D13: 0.13 | E13: 0.21 | F13: 0.3 | G13: 0.38 | H13: 1.31
B15: Source: Computed from Census data.

Sheet 1.6
A1: Table 1.6: Educational Statistics
B2: 1871 | C2: 1881 | D2: 1891 | E2: 1901 burgh
A4: Total Population | B4: 477,732 | C4: 511,415 | D4: 658,198
A5: Population at Three Groups of Ages under 5 | B5: 65,202 | C5: 70,061 | D5: 83,472 | E5: 75,609
A6: 5-15 | B6: 100,691 | C6: 106,770 | D6: 141,885 | E6: 114,895
A7: above 15 | B7: 311,839 | C7: 334,584 | D7: 432,841 | E7: 75,179
A8: Number of Persons in the Receipt of Education under 5 | B8: 621 | C8: 1,075 | D8: 1,404 | E8: 832
A9: 5-15 | B9: 60,649 | C9: 75,065 | D9: 104,910 | E9: 105,493
A10: above 15 | B10: 2,454 | C10: 3,184 | D10: 3,725 | E10: 4,733
A11: Percentage of Persons in the Receipt of Education to the Population of each Group of Ages under 5 | B11: 0.95 | C11: 1.53 | D11: 1.68 | E11: 1.10
A12: 5-15 | B12: 60.23 | C12: 70.31 | D12: 73.94 | E12: 91.82
A13: above 15 | B13: 0.79 | C13: 0.95 | D13: 0.86 | E13: 6.30
A14: Total | B14: 13.34 | C14: 15.50 | D14: 16.74
A15: Source: Computed from Census data.

Sheet 1.7
A1: Table 1.7: Number Employed by Occupation, Sex, Age Group, by Census Years
B2: 1841 | H2: 1851
B3: Males | D3: Females | F3: Total | H3: Males | J3: Females | L3: Total
B4: under | C4: over | D4: under | E4: over | F4: under | G4: over | H4: under | I4: over | J4: under | K4: over | L4: under | M4: over
B5: 20 | C5: 20 | D5: 20 | E5: 20 | F5: 20 | G5: 20 | H5: 20 | I5: 20 | J5: 20 | K5: 20 | L5: 20 | M5: 20
A6: CLASS I : Professional
A7: 1. Government | B7: 4 | C7: 724 | E7: 5 | F7: 4 | G7: 729 | H7: 12 | I7: 1,245 | K7: 4 | L7: 12 | M7: 1,249
A8: 2. Army & Navy | B8: 100 | C8: 1,133 | F8: 100 | G8: 1,133 | H8: 89 | I8: 597 | L8: 89 | M8: 597
A9: 3. Other | B9: 138 | C9: 1,531 | D9: 75 | E9: 804 | F9: 213 | G9: 2,335 | H9: 471 | I9: 2,433 | J9: 74 | K9: 585 | L9: 545 | M9: 3,018
A10: Total | B10: 242 | C10: 3,388 | D10: 75 | E10: 809 | F10: 317 | G10: 4,197 | H10: 572 | I10: 4,275 | J10: 74 | K10: 589 | L10: 646 | M10: 4,864
A11: CLASS II: Domestic | B11: 347 | C11: 1,001 | D11: 4,386 | E11: 8,162 | F11: 4,733 | G11: 9,163 | H11: 251 | I11: 572 | J11: 5,241 | K11: 11,291 | L11: 5,492 | M11: 11,863
A12: CLASS III: Commercial
A13: 1. Commercial | B13: 712 | C13: 3,389 | D13: 7 | E13: 102 | F13: 719 | G13: 3,491 | H13: 1,027 | I13: 3,281 | J13: 208 | K13: 143 | L13: 1,235 | M13: 3,424
A14: 2. Conveyance | B14: 769 | C14: 4,110 | D14: 31 | E14: 116 | F14: 800 | G14: 4,226 | H14: 2,924 | I14: 7,055 | L14: 2,924 | M14: 7,055
A15: Total | B15: 1,481 | C15: 7,499 | D15: 38 | E15: 218 | F15: 1,519 | G15: 7,717 | H15: 3,951 | I15: 10,336 | J15: 208 | K15: 143 | L15: 4,159 | M15: 10,479
A16: CLASS IV: Agricultural
A17: 1. Agriculture | B17: 389 | C17: 3,180 | D17: 9 | E17: 63 | F17: 398 | G17: 3,243 | H17: 173 | I17: 1,878 | J17: 22 | K17: 216 | L17: 195 | M17: 2,094
A18: 2. About Animals | B18: 3 | C18: 39 | E18: 1 | F18: 3 | G18: 40 | H18: 5 | I18: 83 | L18: 5 | M18: 83
A19: 3. Fishermen | B19: 2 | C19: 8 | F19: 2 | G19: 8 | I19: 7 | M19: 7
A20: Total | B20: 394 | C20: 3,227 | D20: 9 | E20: 64 | F20: 403 | G20: 3,291 | H20: 178 | I20: 1,968 | J20: 22 | K20: 216 | L20: 200 | M20: 2,184
A21: CLASS V: Industrial
A22: 1. Books, Maps | B22: 560 | C22: 1,429 | D22: 62 | E22: 85 | F22: 622 | G22: 1,514 | H22: 725 | I22: 1,371 | J22: 100 | K22: 106 | L22: 825 | M22: 1,477
A23: 2. Machines & Implements | B23: 399 | C23: 1,348 | D23: 65 | E23: 71 | F23: 646 | G23: 1,419 | H23: 757 | I23: 3,044 | J23: 49 | K23: 76 | L23: 806 | M23: 3,120
A24: 3. Houses, Furnishings | B24: 1,520 | C24: 7,150 | D24: 30 | E24: 72 | F24: 1,550 | G24: 7,222 | H24: 1,790 | I24: 9,644 | J24: 74 | K24: 171 | L24: 1,864 | M24: 9,815
A25: 4. Carriages & Harness | B25: 105 | C25: 370 | D25: 1 | E25: 6 | F25: 106 | G25: 376 | H25: 122 | I25: 504 | K25: 4 | L25: 122 | M25: 508
A26: 5. Ships & Boats | B26: 110 | C26: 264 | E26: 1 | F26: no | G26: 265 | H26: 75 | I26: 382 | L26: 75 | M26: 382
A27: 6. Chemicals & Compounds | B27: 52 | C27: 156 | D27: 40 | E27: 142 | F27: 92 | G27: 298 | H27: 157 | I27: 920 | J27: 23 | K27: 38 | L27: 180 | M27: 958
A28: 7. Tobacco &c Pipes | B28: 256 | C28: 233 | D28: 4 | E28: 18 | F28: 260 | G28: 251 | H28: 130 | I28: 217 | J28: 26 | K28: 52 | L28: 156 | M28: 269
A29: 8. Food & Lodging | B29: 806 | C29: 4,192 | D29: 33 | E29: 1,387 | F29: 839 | G29: 5,579 | H29: 1,900 | I29: 6,673 | J29: 161 | K29: 2,379 | L29: 2,061 | M29: 9,052
A30: 9. Textile Fabrics | B30: 4,166 | C30: 13,691 | D30: 8,063 | E30: 11,641 | F30: 12,229 | G30: 25,332 | H30: 4,930 | I30: 14,739 | J30: 10,404 | K30: 17,213 | L30: 15,334 | M30: 31,952
A31: 10. Dress | B31: 1,238 | C31: 5,668 | D31: 1,338 | E31: 4,400 | F31: 2,576 | G31: 10,068 | H31: 1,606 | I31: 7,204 | J31: 2,716 | K31: 8,008 | L31: 4,322 | M31: 15,212
A32: 11. Animal Substances | B32: 155 | C32: 508 | D32: 7 | E32: 34 | F32: 162 | G32: 542 | H32: 149 | I32: 618 | J32: 10 | K32: 56 | L32: 159 | M32: 674
A33: 12. Vegetable Substances | B33: 271 | C33: 1,176 | D33: 45 | E33: 69 | F33: 316 | G33: 1,245 | H33: 681 | I33: 2,185 | J33: 139 | K33: 293 | L33: 820 | M33: 3,298
A34: 13. Mineral Substances | B34: 2,079 | C34: 5,564 | D34: 49 | E34: 139 | F34: 2,128 | G34: 5,703 | H34: 4,797 | I34: 10,953 | J34: 221 | K34: 356 | L34: 5,018 | M34: 11,309 6,140
A35: 14. General or Unspecified | B35: 1,037 | C35: 8,364 | D35: 50 | E35: 518 | F35: 1,087 | G35: 8,882 | H35: 876 | I35: 5,403 | J35: 155 | K35: 737 | L35: 1,031
A36: 15. Refuse Matters | B36: 49 | C36: 77 | D36: 1 | E36: 10 | F36: 50 | G36: 87 | H36: 55 | I36: 72 | J36: 20 | K36: 91 | L36: 75 | M36: 163
A37: Total | B37: 12,803 | C37: 50,190 | D37: 9,788 | E37: 18,593 | F37: 22,591 | G37: 68,783 | H37: 18,750 | I37: 63,929 | J37: 14,098 | K37: 29,580 | L37: 32,848 | M37: 93,509
A38: CLASS VI: Unspecified | B38: 682 | C38: 2,533 | D38: 549 | E38: 5,322 | F38: 1,231 | G38: 7,855 | H38: 4 | I38: 140 | J38: 33 | K38: 1,419 | L38: 37 | M38: 1,559
A39: GRAND TOTAL | B39: 15,949 | C39: 67,838 | D39: 14,845 | E39: 33,168 | F39: 30,794 | G39: 101,006 | H39: 23,706 | I39: 81,220 | J39: 19,676 | K39: 43,238 | L39: 43,382 | M39: 124,458

Sheet 1.7b
A1: Table 1.7: | B1: cont.
D2: 1861 | J2: 1871
B3: Males | D3: Females | F3: Total | H3: Males | J3: Females | L3: Total
B4: under | C4: over | D4: under | E4: over | F4: under | G4: over | H4: under | I4: over | J4: under | K4: over | L4: under | M4: over
B5: 20 | C5: 20 | D5: 20 | E5: 20 | F5: 20 | G5: 20 | H5: 20 | I5: 20 | J5: 20 | K5: 20 | L5: 20 | M5: 20
A6: CLASS I:
A7: 1 | B7: 37 | C7: 1,451 | E7: 27 | F7: 37 | G7: 1,478 | H7: 182 | I7: 1,718 | K7: 23 | L7: 182 | M7: 1,741
A8: 2 | B8: 70 | C8: 1,006 | F8: 70 | G8: 1,006 | H8: 131 | I8: 741 | L8: 131 | M8: 741
A9: 3 | B9: 728 | C9: 2,872 | D9: 200 | E9: 698 | F9: 928 | G9: 3,570 | H9: 787 | I9: 3,124 | J9: 307 | K9: 888 | L9: 1,094 | M9: 4,012
A10: Total | B10: 889 | C10: 5,329 | D10: 200 | E10: 725 | F10: 1,035 | G10: 6,054 | H10: 1,100 | I10: 5,583 | J10: 307 | K10: 911 | L10: 1,407 | M10: 6,494
A11: CLASS II: | B11: 132 | C11: 728 | D11: 4,283 | E11: 9,624 | F11: 11,415 | G11: 10,352 | H11: 274 | I11: 1,327 | J11: 4,558 | K11: 9,279 | L11: 4,832 | M11: 10,606
A12: CLASS III:
A13: 1 | B13: 1,362 | C13: 4,473 | D13: 153 | E13: 975 | F13: 1,515 | G13: 5,448 | H13: 2,110 | I13: 5,962 | J13: 130 | K13: 286 | L13: 2,240 | M13: 6,248
A14: 2 | B14: 3,268 | C14: 9,418 | D14: 507 | E14: 366 | F14: 3,775 | G14: 9,784 | H14: 5,354 | I14: 12,749 | J14: 1,159 | K14: 559 | L14: 6,513 | M14: 13,308
A15: Total | B15: 4,630 | C15: 13,891 | D15: 660 | E15: 1,341 | F15: 5,290 | G15: 15,232 | H15: 7,464 | I15: 18,711 | J15: 1,289 | K15: 845 | L15: 8,753 | M15: 19,556
A16: CLASS IV:
A17: 1 | B17: 99 | C17: 1,044 | D17: 38 | E17: 363 | F17: 137 | G17: 1,407 | H17: 48 | I17: 585 | J17: 9 | K17: 114 | L17: 57 | M17: 699
A18: 2 | B18: 28 | C18: 424 | E18: 3 | F18: 28 | G18: 427 | H18: 54 | I18: 637 | K18: 2 | L18: 54 | M18: 639
A19: 3 | B19: 3 | C19: 17 | E19: 1 | F19: 3 | G19: 18 | H19: 1 | I19: 12 | K19: 3 | L19: 1 | M19: 15
A20: Total | B20: 139 | C20: 1,485 | D20: 38 | E20: 367 | F20: 168 | G20: 1,852 | H20: 103 | I20: 1,234 | J20: 9 | K20: 119 | L20: 112 | M20: 1,353
A21: CLASS V:
A22: 1 | B22: 975 | C22: 1,742 | D22: 350 | E22: 212 | F22: 1,325 1,277 | G22: 1,954 | H22: 1,054 | I22: 2,114 | J22: 597 | K22: 328 | L22: 1,651 | M22: 925
A23: 2 | B23: 1,151 | C23: 4,040 | D23: 86 | E23: 132 | G23: 4,172 | H23: 1,618 3,101 | I23: 6,654 | J23: 102 | K23: 133 | L23: 1,720 | M23: 6,787
A24: 3 | B24: 2,151 | C24: 10,609 | D24: 37 | E24: 594 | F24: 2,188 | G24: 11,203 | I24: 15,275 | J24: 60 | K24: 261 | L24: 3,161 | M24: 15,536
A25: 4 | B25: 133 | C25: 603 | D25: 1 | E25: 1 | F25: 134 | G25: 604 | H25: 154 | I25: 863 | J25: 4 | K25: 3 | L25: 158 | M25: 866
A26: 5 | B26: 276 | C26: 1,260 | E26: 1 | F26: 276 | G26: 1,261 | H26: 484 | I26: 2,370 | J26: 1 | K26: 3 | L26: 485 | M26: 2,373
A27: 6 | B27: 486 | C27: 1,309 | D27: 150 | E27: 165 | F27: 136 | G27: 1,474 | H27: 367 | I27: 1,602 | J27: 294 | K27: 211 | L27: 161 | M27: 1,812
A28: 7 | B28: 349 | C28: 279 | D28: 12 | E28: 64 | F28: 361 | G28: 343
A29: 8 | B29: 1,971 | C29: 7,734 | D29: 344 | E29: 3,202 | F29: 2,315 | G29: 10,936 | H29: 2,512 | I29: 8,924 | J29: 5,093 | K29: 11,037 | L29: 7,605 | M29: 19,961
A30: 9 | B30: 3,292 | C30: 13,708 | D30: 10,044 | E30: 16,173 | F30: 13,336 | G30: 29,881 | H30: 2,272 | I30: 10,512 | J30: 11,994 | K30: 17,456 | L30: 14,266 | M30: 27,968
A31: 10 | B31: 1,955 | C31: 8,020 | D31: 2,941 | E31: 14,685 | F31: 4,896 | G31: 22,705 | H31: 1,334 | I31: 7,980 | J31: 3,744 | K31: 13,577 | L31: 5,078 | M31: 21,557
A32: 11 | B32: 161 | C32: 705 | D32: 87 | E32: 129 | F32: 248 | G32: 834 | H32: 206 | I32: 904 | J32: 82 | K32: 176 | L32: 288 | M32: 1,080
A33: 12 | B33: 1,032 | C33: 2,656 | D33: 477 | E33: 659 | F33: 1,509 | G33: 3,315 | H33: 895 | I33: 3,337 22,265 | J33: 805 | K33: 736 | L33: 1,700 | M33: 4,073
A34: 13 | B34: 5,258 | C34: 15,318 | D34: 309 | E34: 536 | F34: 5,567 | G34: 15,854 | H34: 6,753 | J34: 546 | K34: 618 | L34: 7,299 | M34: 22,883
A35: 14 | B35: 1,104 | C35: 7,315 | D35: 1,502 | E35: 2,486 | F35: 2,606 | G35: 9,801 | H35: 1,566 | I35: 11,419 | J35: 495 | K35: 1,958 | L35: 2,061 | M35: 13,377
A36: 15 | B36: 5 | C36: 145 | F36: 5 | G36: 145
A37: Total | B37: 20,299 | C37: 75,443 | D37: 16,340 | E37: 39,039 | F37: 36,639 | G37: 114,482 | H37: 22,316 | I37: 94,219 | J37: 23,817 | K37: 46,497 3,972 | L37: 46,133 | M37: 140,716
A38: CLASS VI: | B38: 149 | C38: 1,072 | D38: 296 | E38: 1,933 | F38: 445 | G38: 3,005 | H38: 28 | I38: 1,158 | J38: 104 | K38: 3,972 | L38: 132 | M38: 5,130
A39: TOTAL | B39: 26,229 | C39: 97,948 | D39: 21,817 | E39: 53,029 | F39: 48,046 | G39: 150,977 | H39: 31,285 | I39: 122,232 | J39: 30,083 | K39: 61,623 | L39: 61,369 | M39: 183,855

Sheet 1.7c
A1: Table 1.7: | B1: cont.
B2: 1881 | H2: 1891 | J2: 1891
B3: Males | D3: Females | F3: Total | H3: Males | J3: Females | L3: Total
B4: under | C4: over | D4: under | E4: over | F4: under | G4: over | H4: under | I4: over | J4: under | K4: over | L4: under | M4: over
B5: 20 | C5: 20 | D5: 20 | E5: 20 | F5: 20 | G5: 20 | H5: 20 | I5: 20 | J5: 20 | K5: 20 | L5: 20 | M5: 20
A6: CLASS I:
A7: 1 | B7: 266 | C7: 2,058 | D7: 220 | E7: 103 | F7: 286 | G7: 2,161 | H7: 485 | I7: 3,074 | J7: 84 | K7: 182 | L7: 569 | M7: 3,256
A8: 2 | B8: 3 | C8: 332 | F8: 3 | G8: 332 | H8: 327 | I8: 853 | L8: 327 | M8: 853
A9: 3 | B9: 1,679 | C9: 3,897 | D9: 1,737 | E9: 1,848 | F9: 3,416 | G9: 5,745 | H9: 1,995 | I9: 6,067 | J9: 2,249 | K9: 3,082 | L9: 4,244 | M9: 9,149
A10: Total | B10: 1,948 | C10: 6,287 | D10: 1,757 | E10: 1,951 | F10: 3,705 | G10: 8,238 | H10: 2,807 | I10: 9,994 | J10: 2,333 | K10: 3,264 | L10: 5,140 | M10: 13,258
A11: CLASS II: | B11: 186 | C11: 1,620 | D11: 4,445 | E11: 12,162 | F11: 4,631 | G11: 13,782 | H11: 673 | I11: 3,315 | J11: 6,044 | K11: 19,290 | L11: 6,717 | M11: 22,605
A12: CLASS III:
A13: 1 | B13: 2,859 | C13: 8,441 | D13: 313 | E13: 387 | F13: 3,172 | G13: 8,828 | H13: 4,633 | I13: 12,953 | J13: 761 | K13: 990 | L13: 5,394 | M13: 13,943
A14: 2 | B14: 5,437 | C14: 15,119 | D14: 1,098 | E14: 73 | F14: 6,535 | G14: 15,192 | H14: 7,579 | I14: 22,040 | J14: 2,010 | K14: 506 | L14: 9,589 | M14: 22,546
A15: Total | B15: 8,296 | C15: 23,560 | D15: 1,411 | E15: 460 | F15: 9,707 | G15: 24,020 | H15: 12,212 | I15: 34,993 | J15: 2,771 | K15: 1,496 | L15: 14,983 | M15: 36,489
A16: CLASS IV:
A17: 1 | B17: 34 | C17: 358 | D17: 19 | E17: 146 | F17: 53 | G17: 504 | H17: 72 | I17: 856 | J17: 23 | K17: 178 | L17: 95 | M17: 1,034
A18: 2 | B18: 90 | C18: 595 | E18: 4 | F18: 90 | G18: 599 | H18: 11 | I18: 231 | J18: 1 | K18: 3 | L18: 12 | M18: 234
A19: 3 | B19: 2 | C19: 19 | F19: 2 | G19: 19 | H19: 1 | I19: 21 | K19: 1 | L19: 1 | M19: 22
A20: Total | B20: 126 | C20: 972 | D20: 19 | E20: 150 | F20: 145 | G20: 1,122 | H20: 84 | I20: 1,108 | J20: 24 | K20: 182 | L20: 108 | M20: 1,290
A21: CLASS V:
A22: 1 | B22: 1,047 | C22: 2,491 | D22: 1,191 | E22: 590 | F22: 2,238 | G22: 3,081 | H22: 1,094 | I22: 3,726 | J22: 1,337 | K22: 1,214 | L22: 2,431 | M22: 4,940
A23: 2 | B23: 1,986 | C23: 8,879 | D23: 105 | E23: 158 | F23: 2,091 | G23: 9,037 | H23: 3,943 | I23: 13,431 | J23: 110 | K23: 155 | L23: 4,053 | M23: 13,586
A24: 3 | B24: 2,822 | C24: 15,567 | D24: 408 | E24: 706 | F24: 3,230 | G24: 16,273 | H24: 2,850 | I24: 17,062 | J24: 602 | K24: 977 | L24: 3,452 | M24: 18,039
A25: 4 | B25: 175 | C25: 1,096 | D25: 3 | E25: 5 | F25: 178 | G25: 1,101 | H25: 270 | I25: 1,476 | J25: 20 | K25: 30 | L25: 290 | M25: 1,506
A26: 5 | B26: 266 | C26: 1,374 | D26: 1 | F26: 267 | G26: 1,374 | H26: 260 | I26: 1,772 | J26: 5 | K26: 48 | L26: 265 | M26: 1,820
A27: 6 | B27: 231 | C27: 1,204 | D27: 95 | E27: 117 | F27: 326 | G27: 1,321 | H27: 253 | I27: 1,475 | J27: 90 | K27: 140 | L27: 343 | M27: 1,615
A28: 7 | B28: 106 | C28: 568 | D28: 353 | E28: 317 | F28: 459 | G28: 885 | H28: 78 | I28: 569 | J28: 562 | K28: 711 | L28: 640 | M28: 1,280
A29: 8 | B29: 2,436 | C29: 10,082 | D29: 899 | E29: 3,565 | F29: 3,335 | G29: 13,647 | H29: 3,000 | I29: 11,895 | J29: 2,003 | K29: 4,654 | L29: 5,003 | M29: 16,549
A30: 9 | B30: 1,832 | C30: 8,741 | D30: 8,643 | E30: 16,031 | F30: 10,475 | G30: 24,772 | H30: 1,897 | I30: 8,676 | J30: 7,861 | K30: 13,022 | L30: 9,758 | M30: 21,698
A31: 10 | B31: 1,394 | C31: 8,354 | D31: 4,199 | E31: 11,660 | F31: 5,593 | G31: 20,014 | H31: 1,231 | I31: 8,453 | J31: 6,154 | K31: 13,595 | L31: 7,385 | M31: 22,048
A32: 11 | B32: 276 | C32: 1,199 | D32: 136 | E32: 288 | F32: 412 | G32: 1,487 | H32: 281 | I32: 1,416 | J32: 263 | K32: 402 | L32: 544 | M32: 1,818
A33: 12 | B33: 712 | C33: 3,204 | D33: 1,064 | E33: 882 | F33: 1,776 | G33: 4,086 | H33: 879 | I33: 4,256 | J33: 1,352 | K33: 1,439 | L33: 2,231 | M33: 5,695
A34: 13 | B34: 5,282 | C34: 22,741 | D34: 493 | E34: 608 | F34: 5,775 | G34: 23,349 | H34: 6,013 | I34: 28,398 | J34: 854 | K34: 1,008 | L34: 6,867 | M34: 29,406
A35: 14 | B35: 2,079 | C35: 13,483 | D35: 1,991 | E35: 3,778 | F35: 4,070 | G35: 17,261 | H35: 3,037 | I35: 17,653 | J35: 2,045 | K35: 3,882 | L35: 5,082 | M35: 21,535
A36: 15 | B36: 27 | C36: 293 | D36: 30 | E36: 155 | F36: 57 | G36: 448 | H36: 22 | I36: 326 | J36: 68 | K36: 214 | L36: 90 | M36: 540
A37: Total | B37: 20,671 | C37: 99,281 | D37: 19,611 | E37: 38,860 | F37: 40,282 | G37: 138,141 | H37: 25,108 | I37: 120,584 | J37: 23,326 | K37: 41,491 | L37: 48,434 | M37: 162,075
A38: CLASS VI: | B38: 608 | C38: 2,376 | D38: 3,882 | E38: 94,356 | F38: 4,490 | G38: 96,732 | H38: 444 | I38: 4,558 | J38: 6,433 | K38: 125,113 | L38: 6,877 | M38: 129,671
A39: TOTAL | B39: 31,835 | C39: 134,096 | D39: 31,125 | E39: 147,939 | F39: 62,960 | G39: 282,035 | H39: 41,328 | I39: 174,552 | J39: 40,931 | K39: 190,836 | L39: 82,259 | M39: 365,388

Sheet 1.7d
B2: Males | D2: Females | F2: Total
B3: Under | C3: over | D3: under | E3: over | F3: under | G3: over
B4: 20 | C4: 20 | D4: 20 | E4: 20 | F4: 20 | G4: 20
A5: CLASS I:
A6: 1 | B6: 708 | C6: 3,033 | D6: 23 | E6: 135 | F6: 731 | G6: 3,168
A7: 2 | B7: 235 | C7: 575 | F7: 235 | G7: 575
A8: 3 | B8: 775 | C8: 6,100 | D8: 726 | E8: 5,019 | F8: 1,501 | G8: 11,119
A9: Total | B9: 1,718 | C9: 9,708 | D9: 749 | E9: 5,154 | F9: 2,467 | G9: 14,862
A10: CLASS II: | B10: 231 | C10: 1,622 | D10: 5,118 | E10: 18,976 | F10: 5,349 | G10: 20,598
A11: CLASS III:
A12: 1 | B12: 4,115 | C12: 16,593 | D12: 2,258 | E12: 3,000 | F12: 6,373 | G12: 19,593
A13: 2 | B13: 9,411 | C13: 29,577 | D13: 2,585 | E13: 690 | F13: 11,996 | G13: 30,267
A14: Total | B14: 13,526 | C14: 46,170 | D14: 4,843 | E14: 3,690 | F14: 18,369 | G14: 49,860
A15: CLASS IV:
A16: 1 | B16: 51 | C16: 852 | D16: 42 | E16: 132 | F16: 93 | G16: 984
A17: 2 | B17: 8 | C17: 214 | E17: 5 | F17: 8 | G17: 219
A18: 3 | C18: 14 | G18: 14
A19: Total | B19: 59 | C19: 1,080 | D19: 42 | E19: 137 | F19: 101 | G19: 1,217
A20: CLASS V:
A21: 1 | B21: 1,063 | C21: 5,439 | D21: 3,222 | E21: 3,357 | F21: 4,285 | G21: 8,796
A22: 2 | B22: 7,176 | C22: 31,339 | D22: 272 | E22: 359 | F22: 7,448 | G22: 31,698
A23: 3 | B23: 4,610 | C23: 24,791 | D23: 1,027 | E23: 1,320 | F23: 5,637 | G23: 26,091
A24: 4 | B24: 376 | C24: 2,417 | D24: 21 | E24: 40 | F24: 397 | G24: 2,450
A25: 5 | B25: 541 | C25: 2,469 | D25: 15 | E25: 13 | F25: 556 | G25: 2,482
A26: 6 | B26: 359 | C26: 2,838 | D26: 397 | E26: 538 | F26: 756 | G26: 3,376
A27: 7 | B27: 84 | C27: 722 | D27: 1,248 | E27: 752 | F27: 1,332 | G27: 1,474
A28: 8 | B28: 3,626 | C28: 17,469 | D28: 3,837 | E28: 7,560 | F28: 7,463 | G28: 25,029
A29: 9 | B29: 1,556 | C29: 7,613 | D29: 6,512 | E29: 11,874 | F29: 8,068 | G29: 19,487
A30: 10 | B30: 1,236 | C30: 9,504 ' | D30: 7,108 | E30: 16,684 | F30: 8,344 | G30: 26,188
A31: 11 | B31: 226 | C31: 1,368 | D31: 395 | E31: 522 | F31: 621 | G31: 1,890
A32: 12 | B32: 816 | C32: 3,642 | D32: 158 | E32: 130 | F32: 974 | G32: 3,772
A33: 13 | B33: 3,182 | C33: 17,056 | D33: 896 | E33: 1,006 | F33: 4,078 | G33: 18,062
A34: 14 | B34: 2,453 | C34: 18,199 | D34: 859 | E34: 2,404 | F34: 3,312 | G34: 20,603
A35: 15 | B35: 41 | C35: 634 | F35: 41 | G35: 634
A36: Total | B36: 27,345 | C36: 145,473 | D36: 25,967 | E36: 46,559 | F36: 53,312 | G36: 192,032
A37: CLASS VI: | B37: 4 | C37: 4,458 | D37: 20 | E37: 6,638 | F37: 24 | G37: 11,096
A38: TOTAL | B38: 42,883 | C38: 208,511 | D38: 36,739 | E38: 81,154 | F38: 79,622 | G38: 289,665

Sheet 1.8a
A1: Table 1.8 : Percentage of Total Labour Force, by Sex and Category
B2: 1841 | E2: 1851 | F2: 1651 | H2: 1861 | I2: 1861
B3: Male | C3: Female | D3: Total | E3: Male | F3: Female | G3: Total | H3: Male | I3: Female | J3: Total
A4: CLASS I: Provisional
A5: 1. Government | B5: 0.59 | D5: 0.59 | E5: 0.76 | G5: 0.76 | H5: 0.76 | J5: 0.76
A6: 2. Army & Navy | B6: 1.00 | D6: 1.00 | E6: 0.41 | G6: 0.41 | H6: 0.55 | J6: 0.55
A7: 3. Other | B7: 1.36 | C7: 0.71 | D7: 2.08 | E7: 1.75 | F7: .40 | G7: 2.14 | H7: 1.84 | I7: 0.46 | J7: 2.30
A8: Total | B8: 296 | C8: 0.72 | D8: 3.68 | E8: 2.92 | F8: .40 | G8: 3.31 | H8: 3.18 | I8: 0.47 | J8: 3.65
A9: CLASS II: Domestic | B9: 1.10 | C9: 10.23 | D9: 11.32 | E9: 0.50 | F9: 0.94 | G9: 10.44 | H9: 0.44 | I9: 7.11 | J9: 7.55
A10: CLASS III: Commercial
A11: 1. Commercial | B11: 3.37 | C11: 0.09 | D11: 3.43 | E11: 2.59 | F11: 0.21 | G11: 2.80 | H11: 2.98 | I11: 0.66 | J11: 3.56
A12: 2. Conveyance | B12: 3.98 | C12: 0.12 | D12: 4.10 | E12: 6.00 | G12: 6.00 | H12: 649 | I12: 0.45 | J12: 6.94
A13: Total | B13: 7.32 | C13: 0.21 | D13: 7.53 | E13: 6.59 | F13: 0.11 | G13: 6.61 | H13: 9.47 | I13: 1.02 | J13: 10.49
A14: CLASS IV: Agricultural
A15: 1. Agriculture | B15: 2.91 | C15: 0.06 | D15: 2.97 | E15: 1.23 | F15: 0.14 | G15: 1.36 | H15: 0.68 | I15: 0.21 | J15: 0.79
A16: 2. About Animals | B16: 0.03 | D16: 0.04 | E16: 0.01 | G16: 0.01 | H16: 0.23 | J16: 0.23
A17: 3. Fishermen | B17: 01 | D17: 0.01
A18: Total | B18: 2.9S | C18: 0.06 | D18: 3.01 | E18: 1.29 | F18: 0.14 | G18: 1.43 | H18: 0.81 | I18: 0.21 | J18: 1.02
A19: CLASS V: Industrial
A20: 1. Books, Maps | B20: 1.62 | C20: 0.12 | D20: 1.74 | E20: 1.26 | F20: 0.12 | G20: 1.38 | H20: 1.39 | I20: 0.29 | J20: 1.68
A21: 2. Machines & Implements | B21: 1.42 | C21: 0.11 | D21: 1.53 | E21: 2.29 | F21: 0.01 | G21: 2.36 | H21: 2.65 | I21: 0.01 | J21: 266
A22: 3. Houses, Furnishings | B22: 7.07 | C22: 0.08 | D22: 7.15 | E22: 6.88 | F22: 0.16 | G22: 7.03 | H22: 6.52 | I22: 0.32 | J22: 6.64
A23: 4. Carriages & Harness | B23: 0.39 | D23: 0.39 | E23: 0.38 | G23: 0.36 | H23: 0.38 | J23: 0.38
A24: 5. Ships & Boats | B24: 0.3 | D24: 0.30 | E24: 0.27 | G24: 0.27 | H24: 0.79 | J24: 0.79
A25: 6. Chemicals & Compounds | B25: 0.17 | C25: 0.16 | D25: 0.32 | E25: 0.65 | G25: 0.66 | H25: 0.92 | I25: 0.16 | J25: 1.06
A26: 7. Tobacco It Pipes | B26: 0.40 | D26: 0.40 | E26: 0.21 | G26: 0.21 | H26: 0.32 | J26: 32
A27: 8. Food & Lodgings | B27: 4 07 | C27: 1.16 | D27: 5.23 | E27: 5.57 | F27: 1.63 | G27: 6.68 | H27: 4.96 | I27: 1.61 | J27: 6.77
A28: 9. Textile Fabrics | B28: 14.55 | C28: 16.03 | D28: 30.61 | E28: 11.63 | F28: 16.61 | G28: 28.44 | H28: 869.00 | I28: 13.41 | J28: 22.10
A29: 10. Dress | B29: 563 | C29: 4.68 | D29: 10.30 | E29: 5.30 | F29: 6.45 | G29: 11.75 | H29: 5.10 | I29: 9.01 | J29: 14.11
A30: 11. Animal Substances | B30: 0.54 | D30: 0.54 | E30: 0.46 | G30: 0.46 | H30: 0.44 | I30: 0.11 | J30: 0.56
A31: 12. Vegetable Substances | B31: 1.16 | C31: 0.09 | D31: 1.27 | E31: 1.76 | F31: 0.26 | G31: 2.48 | H31: 1.89 | I31: 0.58 | J31: 2.47
A32: 13. Mineral Substances | B32: 623 | C32: 18 | D32: 638 | E32: 9.47 | F32: 0.36 | G32: 9.82 | H32: 10.52 | I32: 0.43 | J32: 10.93
A33: 14. General or Unspecified | B33: 7.66 | C33: 0.46 | D33: 8.12 | E33: 3.78 | F33: 0.64 | G33: 4.31 | H33: 4.30 | I33: 2.04 | J33: 6.34
A34: 15. Refuse Matters | B34: 0.10 | D34: 0.10 | E34: 0.08 | F34: 0.67 | G34: 0.14
A35: Total | B35: 51.33 | C35: 23.13 | D35: 74.46 | E35: 49.73 | F35: 26.27 | G35: 76.00 | H35: 48.95 | I35: 28.32 | J35: 77.27
A36: Per cent of Total | B36: 6566 | C36: 34.34 | E36: 63.03 | F36: 36.97 | H36: 62.87 | I36: 37.13
A37: Ratio, under 20
A38: to over 20 | B38: 23.83 | C38: 51.34 | D38: 31.74 | E38: 29.23 | F38: 46.97 | G38: 35.27 | H38: 26.92 | I38: 42.12 | J38: 31.82

Sheet 1.8b
A1: Table 1.8 : Percentage of Total Labour Force, by Sex and Category
B2: 1871 | E2: 1881 | F2: 1651 | H2: 1891 | I2: 1861 | K2: 1901 | L2: 1861
B3: Male | C3: Female | D3: Total | E3: Male | F3: Female | G3: Total | H3: Male | I3: Female | J3: Total | K3: Male | L3: Female | M3: Total
A4: CLASS I: Provisional
A5: 1. Government | B5: 0.79 | D5: 0.79 | E5: 0.95 | F5: 0.05 | G5: 1.00 | H5: 1.14 | I5: 0.09 | J5: 1.23 | K5: 1.04 | L5: 0.04 | M5: 1.08
A6: 2. Army & Navy | B6: 0.36 | D6: 0.36 | E6: 0.14 | G6: 0.14 | H6: 0.38 | J6: 0.38 | K6: 0.23 | M6: 0.23
A7: 3. Other | B7: 1.63 | C7: 0.50 | D7: 2.13 | E7: 2.29 | F7: 1.47 | G7: 3.76 | H7: 2.59 | I7: 1.72 | J7: 4.31 | K7: 1.92 | L7: 1.60 | M7: 3.52
A8: Total | B8: 2.79 | C8: 0.51 | D8: 3.29 | E8: 3.38 | F8: 1.52 | G8: 4.90 | H8: 4.11 | I8: 1.80 | J8: 5.91 | K8: 3.19 | L8: 1.64 | M8: 4.83
A9: CLASS II: Domestic | B9: 0.67 | C9: 5.77 | D9: 6.43 | E9: 0.74 | F9: 6.81 | G9: 7.75 | H9: 1.28 | I9: 8.14 | J9: 9.43 | K9: 0.52 | L9: 6.73 | M9: 7.25
A10: CLASS III: Commercial
A11: 1. Commercial | B11: 3.36 | C11: 0.17 | D11: 3.54 | E11: 4.64 | F11: 0.29 | G11: 4.93 | H11: 5.65 | I11: 0.56 | J11: 6.22 | K11: 5.78 | L11: 1.47 | M11: 7.25
A12: 2. Conveyance | B12: 7.54 | C12: 0.72 | D12: 8.26 | E12: 8.43 | F12: 0.48 | G12: 8.91 | H12: 10 | I12: 0.81 | J12: 10.33 | K12: 11 | L12: 0.91 | M12: 11.80
A13: Total | B13: 10.91 | C13: 0.89 | D13: 11.80 | E13: 13.07 | F13: 0.77 | G13: 13.84 | H13: 15.17 | I13: 1.37 | J13: 16.55 | K13: 16.67 | L13: 2.38 | M13: 19.05
A14: CLASS IV: Agricultural
A15: 1. Agriculture | B15: 0.26 | C15: 0.01 | D15: 0.27 | E15: 0.16 | F15: 0.07 | G15: 0.23 | H15: 0.3 | I15: 0.06 | J15: 0.36 | K15: 0.25 | L15: 0.05 | M15: 0.3
A16: 2. About Animals | B16: 0.29 | D16: 0.29 | E16: 0.28 | G16: 0.28 | H16: 0.08 | J16: 0.08 | K16: 0.06 | M16: 0.06
A17: 3. Fishermen
A18: Total | B18: 0.56 | C18: 0.01 | D18: 0.57 | E18: 0.44 | F18: 0.07 | G18: 0.51 | H18: 0.38 | I18: 0.06 | J18: 0.44 | K18: 0.31 | L18: 0.05 | M18: 0.36
A19: CLASS V: Industrial
A20: 1. Books, Maps | B20: 1.32 | C20: 0.39 | D20: 1.07 | E20: 1.45 | F20: 0.73 | G20: 2.18 | H20: 1.55 | I20: 0.82 | J20: 2.37 | K20: 1.82 | L20: 1.84 | M20: 3.66
A21: 2. Machines & Implements | B21: 3.46 | C21: 0.01 | D21: 3.55 | E21: 4.46 | F21: 0.11 | G21: 4.57 | H21: 5.58 | I21: 0.09 | J21: 5.67 | K21: 10.75 | L21: 0.18 | M21: 10.93
A22: 3. Houses, Furnishings | B22: 7.6 | C22: 0.13 | D22: 7.79 | E22: 7.54 | F22: 0.46 | G22: 8.00 | H22: 6.40 | I22: 0.51 | J22: 6.91 | K22: 8.20 | L22: 0.66 | M22: 8.86
A23: 4. Carriages & Harness | B23: 0.42 | D23: 0.42 | E23: 0.52 | G23: 0.52 | H23: 0.56 | J23: 0.56 | K23: 0.78 | M23: 0.78
A24: 5. Ships & Boats | B24: 1.19 | D24: 1.19 | E24: 0.67 | G24: 0.67 | H24: 0.65 | J24: 0.65 | K24: 0.84 | M24: 0.84
A25: 6. Chemicals & Compounds | B25: 0.82 | C25: 0.21 | D25: 1.03 | E25: 0.59 | F25: 0.09 | G25: 0.68 | H25: 0.56 | I25: 0.07 | J25: 0.63 | K25: 0.89 | L25: 0.26 | M25: 1.15
A26: 7. Tobacco It Pipes | E26: 0.28 | F26: 0.27 | G26: 0.55 | H26: 0.21 | I26: 0.41 | J26: 0.62 | K26: 0.23 | L26: 0.56 | M26: 0.79
A27: 8. Food & Lodgings | B27: 4.77 | C27: 6.72 | D27: 11.49 | E27: 5.14 | F27: 1.83 | G27: 6.97 | H27: 4.79 | I27: 2.14 | J27: 6.93 | K27: 5.89 | L27: 3.18 | M27: 9.07
A28: 9. Textile Fabrics | B28: 5.33 | C28: 12.27 | D28: 17.60 | E28: 4.34 | F28: 10.12 | G28: 14.46 | H28: 3.40 | I28: 6.71 | J28: 10.11 | K28: 2.56 | L28: 5.13 | M28: 7.69
A29: 10. Dress | B29: 3.88 | C29: 7.22 | D29: 11.10 | E29: 4.00 | F29: 6.51 | G29: 10.51 | H29: 3.11 | I29: 6.35 | J29: 9.46 | K29: 3.00 | L29: 6.64 | M29: 9.64
A30: 11. Animal Substances | B30: 0.46 | C30: 0.11 | D30: 0.57 | E30: 0.61 | F30: 0.17 | G30: 0.78 | H30: 0.55 | I30: 0.21 | J30: 0.76 | K30: 0.45 | L30: 0.26 | M30: 0.71
A31: 12. Vegetable Substances | B31: 1.76 | C31: 0.64 | D31: 2.41 | E31: 1.61 | F31: 0.80 | G31: 2.41 | H31: 1.65 | I31: 0.90 | J31: 2.55 | K31: 1.24 | L31: 0.08 | M31: 1.32
A32: 13. Mineral Substances | B32: 12.09 | C32: 0.49 | D32: 12.58 | E32: 11.50 | F32: 0.64 | G32: 12.14 | H32: 11.06 | I32: 0.60 | J32: 11.66 | K32: 5.65 | L32: 0.53 | M32: 6.18
A33: 14. General or Unspecified | B33: 5.41 | C33: 1.02 | D33: 6.43 | E33: 6.38 | F33: 2.37 | G33: 8.75 | H33: 6.65 | I33: 1.91 | J33: 8.56 | K33: 5.77 | L33: 0.91 | M33: 6.68
A34: 15. Refuse Matters | E34: 0.13 | F34: 0.08 | G34: 0.21 | H34: 0.11 | I34: 0.09 | J34: 0.20 | K34: 0.19 | M34: 0.19
A35: Total | B35: 48.56 | C35: 29.30 | D35: 77.87 | E35: 49.21 | F35: 23.99 | G35: 73.20 | H35: 46.83 | I35: 20.83 | J35: 67.67 | K35: 48.25 | L35: 20.25 | M35: 68.50
A36: Per cent of Total | B36: 63.49 | C36: 36.51 | E36: 66.84 | F36: 33.16 | H36: 67.77 | I36: 32.23 | K36: 68.94 | L36: 31.06
A37: Ratio, under 20
A38: to over 20 | B38: 25.82 | C38: 52.00 | D38: 34.26 | E38: 233.71 | F38: 50.84 | G38: 31.55 | H38: 24.05 | I38: 52.49 | J38: 31.98 | K38: 21.01 | L38: 49.28 | M38: 28.57

Sheet 2.1
A1: Table 2.1: Tenements owned by Manufacturers in Anderston, c.1800
A2: Name | B2: Number of | C2: Insurance
B3: Tenements | C3: Valuation (£)
A4: John Wright | B4: 2 | C4: 450
A5: John Neilson | B5: 2 | C5: 200
A6: John Glasgow | B6: 5 | C6: 300
A7: Source: Guildhall Library, Sun Fire Policy Registers

Sheet 2.2
B2: Year | C2: Occupation | D2: Number of | E2: Insurance Tenements Valuation (£)
B3: 1793 | C3: Coachmaker | D3: 1 | E3: 300
B4: 1793 | C4: Manufacturer | D4: 2 | E4: 150
B5: 1795 | C5: Manufacturer | D5: 3 | E5: 450
B6: 1795 | C6: Calico Printer | D6: 1 | E6: 100
B7: 1795 | C7: Oil & colourman | D7: 3 | E7: 850
B8: 1795 | C8: Manufacturer | D8: 4 | E8: 440
B9: 1796 | C9: Manufacturer | D9: 8 | E9: 400
B10: 1800 | C10: Instrument* maker | D10: 1 | E10: 150
B11: 1800 | C11: Manufacturer | D11: 3 | E11: 350
B12: 1800 | C12: Manufacturer | D12: 2 | E12: 640
B13: 1800 | C13: Rope maker | D13: 7 | E13: 999
B14: 1800 | C14: Inkle-weaver | D14: 3 | E14: 320
B15: 1800 | C15: Wire worker | D15: 4 | E15: 650
B16: 1800 | C16: Saddler | D16: 4 | E16: 560
B17: 1801 | C17: Rope spinner | D17: 3 | E17: 880
B19: Source: Guildhall Library, Sun Fire Policy Registers

Sheet 2.3a
A1: Table 2.3a: The Building TYade and Tenement Property, 1793-1800
A2: Year | B2: Occupation | C2: Number of Tenements | D2: Insurance Valuation (£)
A3: 1793 | B3: Brickmaker | C3: 3 | D3: 550
A4: 1794 | B4: Wright | C4: 3 | D4: 1,050
A5: 1795 | B5: Bricklayer | C5: 1 | D5: 540
A6: 179S | B6: Wright | C6: 2 | D6: 300
A7: 1796 | B7: Wright & Builder | C7: 2 | D7: 1,500
A8: 1796 | B8: Wright 4 | C8: 4 | D8: 395
A9: 1796 | B9: Wright | C9: 1 | D9: 450
A10: 1796 | B10: Plasterer | C10: 3 | D10: 750
A11: 1796 | B11: Brickmaker | C11: 6 | D11: 700
A12: 1799 | B12: Wright (partnership) | C12: 2 | D12: 22S
A13: 1800 | B13: Bricklayer & Thread Manufacturer | C13: 4 | D13: 999
A14: 1800 | B14: Builder (partnership) | C14: 1 | D14: 200
A15: 1800 | B15: Wright | C15: 2 | D15: 1,400
A16: 1800 | B16: Wright (partnership) | C16: 2 | D16: 310
A17: 1800 | B17: Plasterer | C17: 2 | D17: 350
A18: 1800 | B18: Mason | C18: 2 | D18: 200
A20: Source: Guildhall Library, Sun Fire Policy Registers

Sheet 2.3b
A1: Table 2.3b: Merchants and Tenement Property, 1793-1823
A2: Year | B2: Number of Tenements | C2: Insurance Valuation (£)
A3: 1,793 | B3: 2 | C3: 100
A4: 1,796 | B4: 9 | C4: 1.820
A5: 1,796 | B5: 3 | C5: 1,100
A6: 1,800 | B6: 3 | C6: 450
A7: 1,800 | B7: 8 | C7: 1.900
A8: 1,820 | B8: 8 | C8: 2.156
A9: IKS | B9: 2 | C9: 800
A10: 1,820 | B10: 2 | C10: 1.300
A11: 1,820 | B11: 8 | C11: 1,500
A12: 1,821 | B12: 1 | C12: 200
A13: 1,821 | B13: 11 | C13: 7,600
A14: 1,822 | B14: 0 | C14: 1.400
A15: 1,822 | B15: 6 | C15: 1.800
A16: 1,823 | B16: 12 | C16: 4,250
A18: Source: Guildhall Library, Sun Fire Policy Registers

Sheet 2.3c
A1: Table 2.3c: Retailers and Tenement Property, 1795-1823
A2: Year | B2: Occupation | C2: Number of Tenements | D2: Insurance Valuation (£)
A3: 1795 | B3: Grocer | C3: 1 | D3: 300
A4: 1795 | B4: Merchant & Spirit Dealer | C4: 1 | D4: 1,000
A5: 1796 | B5: Baker | C5: 4 | D5: 500
A6: 1796 | B6: Tobacconist | C6: 2 | D6: 580
A7: 1796 | B7: Barber | C7: 9 | D7: 1,150
A8: 1800 | B8: Baker | C8: 1 | D8: 600
A9: 1800 | B9: Grocer & Spirit Dealer | C9: 2 | D9: 200
A10: 1800 | B10: Dealer in old clothes & furniture | C10: 1 | D10: 300
A11: 1800 | B11: Gunsmith | C11: 1 | D11: 600
A12: 1801 | B12: Grocer & Spirit Dealer | C12: 3 | D12: 700
A13: 1801 | B13: Drysalter | C13: 5 | D13: 700
A14: 1801 | B14: Watch & Clock Maker | C14: 1 | D14: 300
A15: 1801 | B15: Tailor | C15: 7 | D15: 1,550
A16: 1801 | B16: Baker | C16: 2 | D16: 400
A17: 1820 | B17: Shopkeeper | C17: 2 | D17: 200
A18: 1820 | B18: Spirit Dealer & Cowfeeder | C18: 1 | D18: 400
A19: 1820 | B19: Tobacconist | C19: 3 | D19: 1,000
A20: 1820 | B20: Cowfeeder | C20: 7 | D20: 900
A21: 1820 | B21: Grocer | C21: 2 | D21: 350
A22: 1820 | B22: Grocer & Spirit Dealer | C22: 1 | D22: 350
A23: 1821 | B23: Tobacconist | C23: 4 | D23: 1,100
A24: 1821 | B24: Haberdasher | C24: 2 | D24: 460
A25: 1821 | B25: Grocer | C25: 5 | D25: 1,600
A26: 1621 | B26: Grocer | C26: 1 | D26: 600
A27: 1822 | B27: Pastry Cooks (partnership) | C27: 3 | D27: 800
A28: 1822 | B28: Baker | C28: 2 | D28: 700
A29: 1823 | B29: Watchmaker | C29: 5 | D29: 1,100
A30: 1823 | B30: Baker | C30: 11 | D30: 1,670
A32: Source: Cuildhall Library, Sun Fire Policy Registers

Sheet 2.4
A1: Table 2.4: Tenements and Houses in Polmadie 1874-1886
A2: Period | B2: Number of Tenements | C2: Number of Houses
A3: 1874-1879 | B3: 33 | C3: 398
A4: 1880-1886 | B4: 13 | C4: 171
A5: Totals | B5: 46 | C5: 569
A7: Source: McKee, ‘Working-class Housing', p. 47,
A8: and Scottish Record OfficeValuation Rolls, VR114, 1874-1886.

Sheet 2.5
A1: Table 2.5: Ownership (Percentage of Houses) of Working-Class Housing in Maryhill, 1861-1891
A2: Owner | B2: 1861 (%) | C2: 1891 (%)
A3: Companies in area | B3: 16 | C3: 5.5
A4: Trusts and lawyers | B4: 28 | C4: 36.2
A5: Widows | B5: 6 | C5: 10.0
A6: Builders | B6: 4 | C6: 1.5
A7: Farmers | B7: 4 | C7: 0
A8: Church | B8: 4 | C8: 4.0
A9: Merchants & Shopkeepers | B9: 36 | C9: 42.8
A11: Source: Whitehouse, ‘Working Class Housing’, p.37, and Valuation Rolls.

Sheet 2.6
A1: Table 2.6: Population, Land Area and Housing in Glasgow, 1712-1911
A3: Year or Census | B3: Total Population | C3: Acreage City & Suburb | D3: Population Density per Acre | E3: Inhabited Houses | F3: Ininhabited Houses | G3: Under Construction | H3: Total Houses Available for Occupancy | I3: Total Families | J3: Percentage of Families above Inhabited Houses
A4: 1712 | B4: 14,000 | C4: 1,768 | D4: 17.9 | E4: 3,669
A5: 1753 | B5: 18.336 | C5: 1,768 | D5: 10.4
A6: 1765 | B6: 28,100 | C6: 1,768 | D6: 15.9
A7: 1780 | B7: 32,576 | C7: 1,768 | D7: 18.4 | I7: 8,144
A8: 1785 | B8: 36,139 | C8: 1,768 | D8: 20.4 | E8: 9,102
A9: 1791 | B9: 41,777 | C9: 1,768 | D9: 23.6 | E9: 10.291
A10: 1801 | B10: 77,385 | C10: 5,063 | D10: 15.2 | E10: 20,276 | F10: 1,184 | H10: 21,460 | I10: 20,967 | J10: 3.41
A11: 1811 | B11: 100,749 | C11: 5,063 | D11: 19.9 | E11: 17,543 | F11: 706 | G11: 72 | H11: 18,249 | I11: 23,567 | J11: 34.34
A12: 1821 | B12: 147,043 | C12: 5,063 | D12: 29.0 | E12: 31,644 | F12: 1,917 | G12: 244 | H12: 33,561 | I12: 31,956 | J12: 1.00
A13: 1831 | B13: 202,426 | C13: 5,063 | D13: 40.0 | E13: 41,598 | F13: 1,759 | G13: 156 | H13: 43,357 | I13: 41,965 | J13: 0.88
A14: 1841 | B14: 274,324 | C14: 5,063 | D14: 54.2 | E14: 52,441 | F14: 2,337 | G14: 529 | H14: 54.778 | I14: 55,309 | J14: 5.46
A15: 1851 | B15: 329,096 | C15: 5,063 | D15: 63.0 | E15: 63,153 | F15: 1,547 | G15: 1,032 | H15: 64,700 | I15: 64,854 | J15: 2.62
A16: 1861 | B16: 395,503 | C16: 5,063 | D16: 78.0 | E16: 82,609 | F16: 4,022 | G16: 962 | H16: 86,611 | I16: 83,588 | J16: 1.17
A17: 1871 | B17: 477,732 | C17: 5,063 | D17: 94.0 | E17: 100.876 | F17: 2,134 | G17: 1,025 | H17: 103,010 | I17: 106.861 | J17: 5.60
A18: 1881 | B18: 511,415 | C18: 6,111 | D18: 84.0 | E18: 106,238 | F18: 12,264 | G18: 377 | H18: 118,502 | I18: 112,710 | J18: 5.74
A19: 1891 | B19: 565,714 | C19: 11,861 | D19: 93.0 | E19: 134,339 | F19: 6,491 | G19: 768 | H19: 140,830 | I19: 144,828 | J19: 7.24
A20: 1901 | B20: 741,124 | C20: 12,687 | D20: 58.0 | E20: 155,526 | F20: 7,225 | G20: 1,535 | H20: 162,751 | I20: 163,548 | J20: 4.90
A21: 1911 | B21: 784,496 | C21: 12,975 | D21: 62.0 | E21: 163,057 | F21: 20,903 | G21: 487 | H21: 183,960 | I21: 167,896 | J21: 2.90

Sheet 2.7
A1: Table 2.7: Householders and Lodgers in the City of Glasgow, 1819
A3: Male Householders | B3: Female Householders | C3: Male Lodgers | D3: Female Lodgers
A4: Number (%) | B4: Number (%) | C4: Number (%) | D4: Number (%)
A5: 11,950 72.5% | B5: 4,528 27.5% | C5: 4,671 57.9% | D5: 3,394 42.1%
A7: Source: Cleland, Rise and Progress, p. 288.

Sheet 3.1
A1: Table 3.1: Causes of Death, Children under 10, Total Burials, 1783-1812
A3: Year | B3: Smallpox | C3: Measles | D3: Fevers | E3: Other | F3: Under 2 | G3: 2-5 | H3: 5-10 | I3: Total under 10 | J3: Total burials
A4: 1783 | B4: 155 | C4: 66 | D4: 118 | E4: 366 | F4: 479 | G4: 174 | H4: 66 | I4: 719
A5: 1784 | B5: 425 | C5: 1 | D5: 146 | E5: 309 | F5: 671 | G5: 161 | H5: 45 | I5: 877
A6: 1785 | B6: 218 | C6: 0 | D6: 292 | E6: 380 | F6: 576 | G6: 126 | H6: 42 | I6: 744
A7: 1786 | B7: 348 | C7: 2 | D7: 177 | E7: 386 | F7: 706 | G7: 179 | H7: 56 | I7: 941
A8: 1787 | B8: 410 | C8: 23 | D8: 240 | E8: 421 | F8: 746 | G8: 205 | H8: 65 | I8: 1,016
A9: 1788 | B9: 399 | C9: 1 | D9: 302 | E9: 388 | F9: 770 | G9: 221 | H9: 68 | I9: 1,057
A10: 1789 | B10: 366 | C10: 23 | D10: 135 | E10: 471 | F10: 794 | G10: 188 | H10: 76 | I10: 1,058
A11: 1790 | B11: 336 | C11: 33 | D11: 155 | E11: 593 | F11: 903 | G11: 247 | H11: 86 | I11: 1,236 | J11: 2,079
A12: 1791 | B12: 607 | C12: 4 | D12: 132 | E12: 560 | F12: 984 | G12: 320 | H12: 63 | I12: 1,367 | J12: 1,912
A13: 1792 | B13: 202 | C13: 58 | D13: 205 | E13: 461 | F13: 664 | G13: 184 | H13: 45 | I13: 893 | J13: 2,190
A14: 1793 | B14: 389 | C14: 5 | D14: 183 | E14: 441 | F14: 807 | G14: 239 | H14: 80 | I14: 1,126 | J14: 2,445
A15: 1794 | B15: 235 | C15: 7 | D15: 126 | E15: 340 | F15: 553 | G15: 144 | H15: 62 | I15: 759 | J15: 1,700
A16: 1795 | B16: 402 | C16: 46 | D16: 92 | E16: 462 | F16: 761 | G16: 225 | H16: 62 | I16: 1,048 | J16: 2,297
A17: 1796 | B17: 177 | C17: 92 | D17: 137 | E17: 392 | F17: 562 | G17: 181 | H17: 54 | I17: 797 | J17: 1,813
A18: 1797 | B18: 354 | C18: 5 | D18: 183 | E18: 373 | F18: 586 | G18: 241 | H18: 57 | I18: 884 | J18: 2,064
A19: 1798 | B19: 309 | C19: 3 | D19: 107 | E19: 425 | F19: 642 | G19: 181 | H19: 41 | I19: 864 | J19: 2,181
A20: 1799 | B20: 370 | C20: 43 | D20: 180 | E20: 564 | F20: 783 | G20: 244 | H20: 78 | I20: 1,105 | J20: 2,499
A21: 1800 | B21: 257 | C21: 21 | D21: 125 | E21: 304 | F21: 545 | G21: 148 | H21: 53 | I21: 746 | J21: 2,096
A22: 1801 | B22: 245 | C22: 8 | D22: 89 | E22: 388 | F22: 494 | G22: 211 | H22: 61 | I22: 766 | J22: 1,928
A23: 1802 | B23: 156 | C23: 168 | D23: 247 | E23: 477 | F23: 544 | G23: 326 | H23: 155 | I23: 985 | J23: 2,325
A24: 1803 | B24: 194 | C24: 45 | D24: 242 | E24: 468 | F24: 610 | G24: 243 | H24: 87 | I24: 940 | J24: 2,438
A25: 1804 | B25: 213 | C25: 27 | D25: 146 | E25: 468 | F25: 583 | G25: 192 | H25: 88 | I25: 863 | J25: 2,224
A26: 1805 | B26: 56 | C26: 99 | D26: 116 | E26: 550 | F26: 616 | G26: 188 | H26: 80 | I26: 884 | J26: 2,389
A27: 1806 | B27: 28 | C27: 56 | D27: 151 | E27: 564 | F27: 517 | G27: 188 | H27: 81 | I27: 786 | J27: 2,280
A28: 1807 | B28: 97 | C28: 16 | D28: 163 | E28: 574 | F28: 595 | G28: 211 | H28: 93 | I28: 899 | J28: 2,463
A29: 1808 | B29: 51 | C29: 787 | D29: 180 | E29: 697 | F29: 1,079 | G29: 521 | H29: 175 | I29: 1,775 | J29: 3,265
A30: 1809 | B30: 159 | C30: 44 | D30: 147 | E30: 784 | F30: 782 | G30: 287 | H30: 118 | I30: 1,187 | J30: 2,368
A31: 1810 | B31: 28 | C31: 19 | D31: 97 | E31: 801 | F31: 765 | G31: 169 | H31: 93 | I31: 1,027 | J31: 2,367
A32: 1811 | B32: 109 | C32: 267 | D32: 175 | E32: 657 | F32: 769 | G32: 341 | H32: 164 | I32: 1,274 | J32: 2,622
A33: 1812 | B33: 78 | C33: 304 | D33: 105 | E33: 584 | F33: 804 | G33: 371 | H33: 103 | I33: 1,278 | J33: 2,716
A35: Source: J. Cleland, Statistical Tables Relative to Glasgow, 1828, pp. 16, 23.

Sheet 3.2
A1: Table 3.2: Crude Death Rates, per thousand, Glasgow, 1821-1911
A3: Period | B3: Rate
A4: 1821-4 | B4: 24.8
A5: 1825-9 | B5: 26.8
A6: 1830-4 | B6: 31.5
A7: 1835-9 | B7: 33.0
A8: 1840-4 | B8: 31.0
A9: 1845-9 | B9: 39.9
A10: 1850-4 | B10: 38.2
A11: 1855-9 | B11: 29.6
A12: 1860-4 | B12: 30.5
A13: 1871 | B13: 30.6
A14: 1881 | B14: 25.6
A15: 1891 | B15: 22.7
A16: 1901 | B16: 21.1
A17: 1911 | B17: 17.3
A19: Source: Plinn, Scottish Population History, pp.377, 383

Sheet 3.3
A1: Table 3.3: Age-Specific Death Rates, per thousand, Glasgow, 1821-1861
A2: Age-Group | B2: 1821 | C2: 1831 | D2: 1841 | E2: 1851 | F2: 1861
A3: 0-4 | B3: 70.4 | C3: 66.1 | D3: 112.8 | E3: 110.1 | F3: 96.4
A4: 5-9 | B4: 11.9 | C4: 9.8 | D4: 16.1 | E4: 16.3 | F4: 11.5
A5: 10-19 | B5: 6.6 | C5: 6.6 | D5: 9.3 | E5: 7.2 | F5: 7.7
A6: 2029 | B6: 10.2 | C6: 8.7 | D6: 11.1 | E6: 9.5 | F6: 10.2
A7: 30-39 | B7: 13.9 | C7: 11.8 | D7: 17.3 | E7: 13.0 | F7: 13.4
A8: 40-49 | B8: 16.7 | C8: 19.3 | D8: 26.0 | E8: 18.1 | F8: 17.5
A9: 50-59 | B9: 26.2 | C9: 30.2 | D9: 38.2 | E9: 28.2 | F9: 27.7
A10: 60-69 | B10: 42.8 | C10: 49.0 | D10: 65.8 | E10: 48.3 | F10: 51.7
A11: over 70 | B11: 117.1 | C11: 151.2 | D11: 160.6 | E11: 126.0 | F11: 129.8
A13: Source: Flinn, Scottish Population History, p. 378.

Sheet 3.4
A1: Table 3.4: City Sanitary Districts: Comparative Density & Mortality, 1971 & 1881
B3: Density per Acre | D3: Death Rate per 1000
A4: Name | B4: 1871 | C4: 1881 | D4: 1871 | E4: 1881
A5: Springburn & Maryhill | B5: 17 | C5: 26 | D5: 28.4 | E5: 22.4
A6: Greenhead & London Rd. | B6: 36 | C6: 52 | D6: 31.1 | E6: 26.7
A7: Kelvinhaugh & Sandyford | B7: 37 | C7: 43 | D7: 20.4 | E7: 17.2
A8: Bellgrove & Dennistoun | B8: 37 | C8: 47 | D8: 29.4 | E8: 23.1
A9: Monteith Row | B9: 39 | C9: 42 | D9: 23.5 | E9: 21
A10: Port Dundas | B10: 73 | C10: 64 | D10: 33.9 | E10: 27.3
A11: Woodside | B11: 81 | C11: 134 | D11: 25.5 | E11: 20.9
A12: St Enoch Square | B12: 93 | C12: 44 | D12: 31.3 | E12: 26.7
A13: Hutcheson Square | B13: 99 | C13: 121 | D13: 26.4 | E13: 24.9
A14: Kingston | B14: 100 | C14: 97 | D14: 25.6 | E14: 21.8
A15: Exchange | B15: 123 | C15: 96 | D15: 22 | E15: 21.7
A16: Blythswood | B16: 126 | C16: 101 | D16: 20.6 | E16: 16.1
A17: Barrowficld | B17: 245 | C17: 233 | D17: 31.2 | E17: 30.3
A18: Anderston | B18: 249 | C18: 229 | D18: 32.5 | E18: 28.4
A19: Laurieston | B19: 251 | C19: 186 | D19: 29.8 | E19: 27.2
A20: St Rollox | B20: 289 | C20: 316 | D20: 30.8 | E20: 21.8
A21: High St & Closes West | B21: 301 | C21: 239 | D21: 45.7 | E21: 29.9
A22: Cowcaddens | B22: 316 | C22: 249 | D22: 33.9 | E22: 32
A23: Brownfield | B23: 337 | C23: 348 | D23: 38.3 | E23: 30.7
A24: Gorbals | B24: 350 | C24: 274 | D24: 38.5 | E24: 29
A25: High St & Closes East | B25: 351 | C25: 155 | D25: 40.7 | E25: 37.8
A26: St Andrews Square | B26: 365 | C26: 189 | D26: 38.3 | E26: 28.7
A27: Calton | B27: 388 | C27: 335 | D27: 36.7 | E27: 30.9
A28: Bridgegate & Wynds | B28: 408 | C28: 223 | D28: 42.3 | E28: 38.3
A30: Source: A. Gibb, Glasgow: The Makingof a City (Beckenham, 1983), p. 131.

Sheet 3.5
A1: Table 3.5: Crude Death Rates from Selected Diseases, Glasgow, 1800-1865
A3: Cause of Death | B3: 1800-10 | C3: 1836-42 | D3: 1855-65
B4: (%) | C4: (%) | D4: (%)
A5: Fever | B5: 9.8 | C5: 16.1 | D5: 9.5
A6: Whooping-cough , Tuberculosis and | B6: 6.8 | C6: 5.3 | D6: 5.6
A7: Bronchitis | B7: 22.8 | C7: 16.8 | D7: 29.6
A8: Smallpox | B8: 6.6 | C8: 5.0 | D8: 1.9
A9: Measles | B9: 7.5 | C9: 6.6 | D9: 3.1
A10: Bowel diseases | B10: 8.9 | C10: 12.1 | D10: 11.4
A11: Total of above | B11: 62.4 | C11: 61.9 | D11: 61.1
A13: Source: Flinn, Scottish Population History, p. 389

Sheet unnumbered
D1: Other Diseases
B2: Zymotics | C2: Phthisis | D2: of Lungs | E2: Other Causes | F2: All Causes
A3: 1855-64 | B3: 7,841 | C3: 3,918 | D3: 5,170 | E3: 13,121 | F3: 30,050
A4: 1865-74 | B4: 7,377 | C4: 3,940 | D4: 6,522 | E4: 12,692 | F4: 30,530
A5: 1875-84 | B5: 5,056 | C5: 3,396 | D5: 6,322 | E5: 12,113 | F5: 26,886
A6: 1885-94 | B6: 3,822 | C6: 2,458 | D6: 5,329 | E6: 11,566 | F6: 23,175

Sheet 4.1a
A1: Table 4.1: Poor Relief Statistics—Town’s Hospital and Parochial Board, 1791-1898
A2: Recipients | E2: Revenue | I2: Expenditure
A3: Year | B3: Inmates | C3: Out-pensioners | D3: Assessment (£) | E3: Government Grants (£) | F3: Other (£) | G3: Total (£) | H3: Relief (£) | I3: Management (£) | J3: Other (£) | K3: Total (£)
A4: 1791 | B4: 335 | C4: 337 | D4: 1,480 | E4: 740 | F4: 477 | G4: 2,697 | K4: 2,699
A5: 1792 | B5: 363 | C5: 341 | D5: 1,673 | E5: 738 | F5: 612 | G5: 3,023 | K5: 2,737
A6: 1793 | B6: 375 | C6: 352 | D6: 1,610 | E6: 735 | F6: 551 | G6: 2,896 | K6: 2,923
A7: 1794 | B7: 384 | C7: 563 | D7: 1,993 | E7: 740 | F7: 452 | G7: 3,185 | K7: 3,939
A8: 1795 | B8: 384 | C8: 926 | D8: 3,387 | E8: 740 | F8: 348 | G8: 4,475 | K8: 4,795
A9: 1796 | B9: 377 | C9: 903 | D9: 3,861 | E9: 740 | F9: 467 | G9: 5,068 | K9: 5,187
A10: 1797 | B10: 387 | C10: 710 | D10: 3,958 | E10: 740 | F10: 479 | G10: 5,177 | K10: 4,774
A11: 1798 | B11: 396 | C11: 699 | D11: 4,195 | E11: 740 | F11: 634 | G11: 5,569 | K11: 4,460
A12: 1799 | B12: 397 | C12: 674 | D12: 3,920 | E12: 740 | F12: 671 | G12: 5,331 | K12: 4,139
A13: 1800 | B13: 395 | C13: 728 | D13: 4,534 | E13: 740 | F13: 578 | G13: 5,852 | K13: 6,409
A14: 1801 | B14: 426 | C14: 1,050 | D14: 7,180 | E14: 728 | F14: 646 | G14: 8,554 | K14: 9,188
A15: 1802 | B15: 380 | C15: 1,128 | D15: 7,955 | E15: 674 | F15: 854 | G15: 9,483 | K15: 7,020
A16: 1803 | B16: 336 | C16: 711 | D16: 3,940 | E16: 674 | F16: 847 | G16: 5,461 | K16: 4,664
A17: 1804 | B17: 381 | C17: 784 | D17: 4,350 | E17: 704 | F17: 1,060 | G17: 6,114 | K17: 5,329
A18: 1805 | B18: 395 | C18: 800 | D18: 5,265 | E18: 704 | F18: 1,038 | G18: 7,007 | K18: 6,061
A19: 1806 | B19: 390 | C19: 859 | D19: 4,865 | E19: 704 | F19: 1,263 | G19: 6,832 | K19: 5,982
A20: 1807 | B20: 394 | C20: 651 | D20: 4,815 | E20: 704 | F20: 1,502 | G20: 7,021 | K20: 6,519
A21: 1808 | B21: 427 | C21: 882 | D21: 5,220 | E21: 704 | F21: 1,491 | G21: 7,415 | K21: 7,057
A22: 1809 | B22: 412 | C22: 818 | D22: 6,000 | E22: 704 | F22: 1,606 | G22: 8,310 | K22: 7,426
A23: 1810 | B23: 420 | C23: 932 | D23: 5,770 | E23: 704 | F23: 1,524 | G23: 7,998 | K23: 7,425
A24: 1811 | B24: 441 | C24: 969 | D24: 5,740 | E24: 704 | F24: 1,628 | G24: 8,072 | K24: 8,036
A25: 1812 | B25: 470 | C25: 1,333 | D25: 7,480 | E25: 704 | F25: 1,372 | G25: 9,556 | K25: 10,332
A26: 1813 | B26: 482 | C26: 1,329 | D26: 10,273 | E26: 641 | F26: 1,836 | G26: 12,750 | K26: 12,521
A27: 1814 | B27: 430 | C27: 1,409 | D27: 10,709 | E27: 704 | F27: 1,935 | G27: 13,348 | K27: 11,566
A28: 1815 | B28: 436 | C28: 1,208 | D28: 9,940 | E28: 704 | F28: 2,025 | G28: 12,669 | K28: 10,883
A29: 1816 | B29: 426 | C29: 1,201 | D29: 9,063 | E29: 649 | F29: 1,610 | G29: 11,322 | K29: 9,684
A30: 1817 | B30: 497 | C30: 1,079 | D30: 10,535 | E30: 693 | F30: 1,342 | G30: 12,570 | K30: 14,753
A31: 1818 | B31: 499 | C31: 1,088 | D31: 11,864
A32: 1819 | B32: 441 | C32: 1,088 | D32: 10,303
A34: Source: Computed from the records of the Glasgow Town’s Hospital and the Glasgow Parochial Board.

Sheet 4.1b
A1: Table 4.1: Continued
A2: Recipients | E2: Revenue | I2: Expenditure
A3: Year | B3: Inmates | C3: Out-pensioners | D3: Assessment (£) | E3: Government Grants (£) | F3: Other (£) | G3: Total (£) | H3: Relief (£) | I3: Management (£) | J3: Other (£) | K3: Total (£)
A4: 1820 | B4: 368 | C4: 1,072 | D4: 13,136
A5: 1821 | B5: 347 | C5: 1,008 | D5: 12,560
A6: 1822 | B6: 340 | C6: 1,016 | D6: 9,213
A7: 1841 | B7: 419 | C7: 1,276
A8: 1842 | B8: 414 | C8: 1,334
A9: 1843 | B9: 416 | C9: 1,584
A10: 1844 | B10: 411 | C10: 1,561
A11: 1845 | B11: 447 | C11: 1,793
A12: 1846 | B12: 517 | C12: 2,376
A13: 1847 | B13: 673 | C13: 4,724 | D13: 41,091 | G13: 41,091
A14: 1848 | B14: 700 | C14: 5,687 | G14: 67,771
A15: 1849 | B15: 1,138 | C15: 6,424
A16: 1850 | B16: 815 | C16: 6,313
A17: 1851 | B17: 973 | C17: 5,286
A18: 1852 | B18: 1,052 | C18: 5,417
A19: 1853 | B19: 1,084 | C19: 4,960
A20: 1854 | B20: 951 | C20: 4,682
A21: 1855 | B21: 1,046 | C21: 4,831
A22: 1856 | B22: 892 | C22: 4,663
A23: 1857 | B23: 888 | C23: 4,998 | D23: 47,240 | E23: 958 | F23: 71 | G23: 48,269 | H23: 33,268 | I23: 5,862 | J23: 1,322 | K23: 40,452
A24: 1858 | B24: 947 | C24: 5,137 | D24: 38,752 | E24: 942 | F24: 18 | G24: 39,712 | H24: 33,276 | I24: 6,349 | J24: 1,609 | K24: 41,234
A25: 1859 | B25: 771 | C25: 4,030 | D25: 39,605 | E25: 723 | F25: 14 | G25: 40,342 | H25: 30,965 | I25: 5,603 | J25: 1,251 | K25: 37,719
A26: 1860 | B26: 770 | C26: 3,574 | D26: 37,300 | E26: 697 | F26: 23 | G26: 38,020 | H26: 31,434 | I26: 5,497 | J26: 1,345 | K26: 38,276
A27: 1861 | B27: 855 | C27: 4,427 | D27: 38,478 | E27: 678 | F27: 76 | G27: 39,232 | H27: 32,137 | I27: 5,048 | J27: 1,623 | K27: 38,808
A28: 1862 | B28: 931 | C28: 5,226 | D28: 38,989 | E28: 675 | F28: 68 | G28: 39,732 | H28: 32,623 | I28: 6,219 | J28: 1,643 | K28: 40,485
A29: 1863 | B29: 1,009 | C29: 4,938 | D29: 38,602 | E29: 682 | F29: 116 | G29: 39,400 | H29: 32,337 | I29: 5,762 | J29: 1,214 | K29: 39,313
A30: 1864 | B30: 914 | C30: 5,146 | D30: 38,902 | E30: 669 | F30: 32 | G30: 39,603 | H30: 33,750 | I30: 5,792 | J30: 1,247 | K30: 40,790
A31: 1865 | B31: 991 | C31: 5,043 | D31: 40,051 | E31: 689 | F31: 114 | G31: 40,854 | H31: 32,453 | I31: 7,996 | J31: 1,531 | K31: 41,980
A32: 1866 | B32: 957 | C32: 4,069 | D32: 42,694 | E32: 666 | F32: 26 | G32: 43,386 | H32: 33,868 | I32: 5,765 | J32: 1,462 | K32: 41,095
A33: 1867 | B33: 1,111 | C33: 4,191 | D33: 43,179 | E33: 612 | F33: 0 | G33: 43,791 | H33: 35,724 | I33: 7,502 | J33: 1,902 | K33: 45,128
A34: 1868 | B34: 1,136 | C34: 4,118 | D34: 44,839 | E34: 606 | F34: 89 | G34: 45,534 | H34: 39,186 | I34: 6,503 | J34: 1,613 | K34: 47,302
A35: 1869 | B35: 1,012 | C35: 3,923 | D35: 47,564 | E35: 645 | F35: 4 | G35: 48,213 | H35: 37,386 | I35: 6,092 | J35: 1,665 | K35: 45,143
A37: Source: Computed from the records of the Glasgow Town’s Hospital and the Glasgow Parochial Board.

Sheet 4.1c
A1: Table 4.1: Continued
A2: Recipients | E2: Revenue | I2: Expenditure
A3: Year | B3: Inmates | C3: Out-pensioners | D3: Assessment (£) | E3: Government Grants (£) | F3: Other (£) | G3: Total (£) | H3: Relief (£) | I3: Management (£) | J3: Other (£) | K3: Total (£)
A4: 1870 | B4: 1,401 | C4: 4,099 | D4: 50,248 | E4: 643 | F4: 2,270 | G4: 53,161 | H4: 36,477 | I4: 8,323 | J4: 1,490 | K4: 46,290
A5: 1871 | B5: 1,428 | C5: 4,041 | D5: 47,019 | E5: 645 | F5: 5,280 | G5: 52,944 | H5: 36,070 | I5: 7,652 | J5: 1,511 | K5: 45,233
A6: 1872 | B6: 1,254 | C6: 3,486 | D6: 44,189 | E6: 647 | F6: 4,254 | G6: 49,090 | H6: 35,851 | I6: 7,414 | J6: 1,487 | K6: 44,752
A7: 1873 | B7: 1,342 | C7: 3,471 | D7: 43,086 | E7: 575 | F7: 4,542 | G7: 48,203 | H7: 34,507 | I7: 6,567 | J7: 1,328 | K7: 42,402
A8: 1874 | B8: 1,361 | C8: 3,366 | D8: 42,418 | E8: 567 | F8: 3,956 | G8: 46,941 | H8: 35,587 | I8: 6,613 | J8: 1,799 | K8: 43,999
A9: 1875 | B9: 1,316 | C9: 2,338 | D9: 42,653 | E9: 563 | F9: 4,381 | G9: 47,597 | H9: 35,475 | I9: 6,755 | J9: 1,743 | K9: 43,973
A10: 1876 | B10: 1,329 | C10: 2.314 | D10: 41,012 | E10: 562 | F10: 3,771 | G10: 45,345 | H10: 34,996 | I10: 7,700 | J10: 1,727 | K10: 44,423
A11: 1877 | B11: 1,266 | C11: 3.075
A12: 1878 | B12: 1.539 | C12: 3,118
A13: 1879 | B13: 1,361 | C13: 3,494 | D13: 41,666 | E13: 4,042 | F13: 2,856 | G13: 48,564 | H13: 43,303 | I13: 9,915 | J13: 597 | K13: 53,815
A14: 1880 | B14: 1,322 | C14: 3,469 | D14: 43,579 | E14: 6,104 | F14: 3,824 | G14: 53,507 | H14: 41,276 | I14: 8,183 | J14: 1,301 | K14: 50.760
A15: 1881 | B15: 1,345 | C15: 3,330 | D15: 47,263 | E15: 5,102 | F15: 2,820 | G15: 55,185 | H15: 43,302 | I15: 8,439 | J15: 762 | K15: 52,503
A16: 1882 | B16: 1,359 | C16: 3.344 | D16: 45,988 | E16: 5,050 | F16: 2,566 | G16: 53,604 | H16: 43,176 | I16: 8,241 | J16: 619 | K16: 52,036
A17: 1883 | B17: 1.387 | C17: 3.372 | D17: 46,129 | E17: 6,314 | F17: 2,821 | G17: 55,264 | H17: 45,703 | I17: 9,656 | J17: 754 | K17: 56,113
A18: 1884 | B18: 1,505 | C18: 3,189 | D18: 45,593 | E18: 6,289 | F18: 3,322 | G18: 55,204 | H18: 46,133 | I18: 9,418 | J18: 626 | K18: 56,177
A19: 1885 | B19: 1.375 | C19: 3,247 | D19: 45,448 | E19: 6,416 | F19: 3,984 | G19: 55,848 | H19: 45,856 | I19: 9,642 | J19: 666 | K19: 56,164
A20: 1886 | B20: 1.222 | C20: 3,106 | D20: 46,551 | E20: 6,575 | F20: 3,900 | G20: 57,026 | H20: 46,377 | I20: 9,050 | J20: 846 | K20: 56,273
A21: 1887 | B21: 1,335 | C21: 3,088 | D21: 45,865 | E21: 6,707 | F21: 3,485 | G21: 56,057 | H21: 45,235 | I21: 8,474 | J21: 661 | K21: 54,370
A22: 1888 | B22: 1,325 | C22: 3,039 | D22: 45,140 | E22: 6,496 | F22: 3,714 | G22: 55,350 | H22: 46,338 | I22: 8,690 | J22: 740 | K22: 55,768
A23: 1889 | B23: 1,171 | C23: 2,901 | D23: 44,014 | E23: 10,951 | F23: 3,024 | G23: 57,989 | H23: 44,348 | I23: 8,246 | J23: 640 | K23: 53,234
A24: 1890 | B24: 1,146 | C24: 2,847 | D24: 37,565 | E24: 6,400 | F24: 2,796 | G24: 46,761 | H24: 41,546 | I24: 7,663 | J24: 635 | K24: 49,844
A25: 1891 | B25: 1,226 | C25: 2,847 | D25: 38,125 | E25: 6,350 | F25: 2,433 | G25: 46,908 | H25: 40,658 | I25: 8,030 | J25: 695 | K25: 49,383
A26: 1892 | B26: 1,265 | C26: 2,936 | D26: 42,400 | E26: 10,117 | F26: 2,749 | G26: 55,266 | H26: 43,191 | I26: 8,167 | J26: 896 | K26: 52,254
A27: 1893 | B27: 1,327 | C27: 3,019 | D27: 42,866 | E27: 9,996 | F27: 2,882 | G27: 55,744 | H27: 44,052 | I27: 7,692 | J27: 897 | K27: 52,641
A28: 1894 | B28: 1,416 | C28: 3,071 | D28: 43,454 | E28: 9,720 | F28: 2,444 | G28: 55,618 | H28: 44,479 | I28: 8,073 | J28: 889 | K28: 53,441
A29: 1895 | B29: 1,305 | C29: 3,083 | D29: 43,904 | E29: 9,733 | F29: 2,587 | G29: 56,224 | H29: 45,360 | I29: 8,168 | J29: 913 | K29: 54,441
A30: 1896 | B30: 1,329 | C30: 3,117 | D30: 42,715 | E30: 9,625 | F30: 4,808 | G30: 57,148 | H30: 49,363 | I30: 10,128 | J30: 0 | K30: 56,117
A31: 1897 | B31: 1,457 | C31: 3,245 | D31: 43,623 | E31: 9,695 | F31: 4,788 | G31: 58,106 | H31: 49,766 | I31: 9,418 | J31: 0 | K31: 59,184
A32: 1898 | B32: 1,500 | C32: 3,327 | D32: 46,412 | E32: 9,786 | F32: 3,947 | G32: 60,145 | H32: 54,396 | I32: 9,765 | J32: 0 | K32: 64,161
A34: Source: Computed from the records of the Glasgow Town’s Hospital and the Glasgow Parochial Board.

Sheet 4.2
A1: Table 4.2: Glasgow Relief Funds, 1878-1895
A3: Cause of distress | B3: 1878-80 Depression after City of Glasgow Bank failure | C3: 1884-85 Commercial depression | D3: 1885-86 Commercial depression | E3: 1886-87 Commercial depression | F3: 1892-93 Depression in Iron and shipbuilding | G3: 1895 Weather
A4: Relief Works Opened | B4: 25 Nov. 1878 | C4: — | D4: 1 Dec. 1885 | E4: 16 Dec. 1886 | F4: 8 Dec. 1892 | G4: 4 Feb. 1895
A5: Relief Works Closed | B5: 31 Jan. 1880 | C5: — | D5: 1 May 1886 | E5: 16 April 1887 | F5: 4 Mar. 1893 | G5: 16 Mar. 1895
A6: Kind of work provided | B6: Digger work, Stonebreaking, Scavenging Oakum picking | C6: Stonebreaking | D6: — | E6: Digger work and Stonebreaking | F6: Digger Work | G6: Stonebreaking
A7: Public subscriptions received | B7: £17,752 | C7: £7,205 | D7: £675 | E7: £25 | F7: None | G7: £9,586
A8: Total amount spent on Relief and Wages | B8: 133,333 | C8: £9,171 | D8: £12,860 | E8: 16,202 | F8: £3,103 | G8: £9,387
A9: Value of work done | B9: 13,590 | C9: £1,480 | D9: £11,283 | E9: £5,408 | F9: £996 | G9: £1,895
A10: Applications for work | B10: 2,213 | C10: — | D10: 4,576 | E10: 2,202 | F10: 2,801 | G10: 3,643
A11: Orders for work given to | B11: 1,900 | C11: — | D11: 4,000 | E11: 1,580 | F11: 2,328 | G11: 3,643
A12: Orders for work refused to | B12: 313 | C12: — | D12: 576 | E12: 622 | F12: 473 | G12: None
A13: Highest number working on one day | B13: 4,508 | C13: 1,229 | D13: 1,494 | E13: 918 | F13: 870 | G13: 2,543
A14: Average number workine during whole period | B14: 303 | C14: — | E14: — | F14: 466 | G14: 1,036
A15: Different occupations of men employed | B15: 110 | C15: 231 | E15: 117 | F15: 110 | G15: 231
A17: Source: Glasgow Parochial Board Minutes, 2 May 1895
